{"text_format":"1","workbook":"xlsx","n_sheets":8,"sheets":["Instructions & Summary","6.1 Product Category Screening","6.4 Advanced Material Selection","References","6.1 - EXAMPLE","6.4 - EXAMPLE","6.1 - Standards","6.4 - Standards"],"not_rendered":{"charts":0,"images":12,"macros":1,"external_links":0,"defined_names":235,"comments":0,"pivot_tables":0},"unopened":[],"bounds":{"document_bytes":16777216,"sheet_cells":100000,"rows_first":2000,"rows_last":500,"rows_between":2000,"halvings":0,"cell_chars":16384,"cell_head_chars":4096},"cells_cut":0,"cells_raw":0,"read":"whole","date_system":"1900"}

{"sheet":"Instructions & Summary","index":0,"n_rows":41,"n_cols":4,"rows_kept":41,"cut":false,"hidden":false,"merged":[[27,1,27,2],[28,1,28,2],[29,1,29,2],[22,1,22,2],[23,1,23,2],[24,1,24,2],[25,1,25,2],[26,1,26,2],[1,1,1,4],[34,2,34,3],[35,2,35,3],[4,1,4,4],[3,1,3,4],[31,1,31,2],[8,1,8,3],[10,1,10,2],[11,1,11,3],[12,1,14,1],[12,3,17,3],[15,1,17,1],[18,1,18,3],[19,1,19,2],[20,1,20,2],[21,1,21,2]]}
[]
[null,"2026 Green Communities Product Category Screening Template (6.1 & 6.4)"]
[]
[null,"INSTRUCTIONS: "]
[null,"INTENT: This template supports Criteria 6.1 (Product Screening) and 6.4 (Advanced Material Selection). \nUse it to track and document compliant material choices from design through construction.\n\n1. COMPLETE PROJECT INFO\n- White cells indicate fields where project teams enter information; shaded cells are prepopulated.\n- In this tab ('Instructions & Summary' ), enter project name and anticipated submission date.\n- At submission, add the responsible party (typically the architect) name and signature at the bottom of this sheet.\n\n2. COMPLETE REQUIRED TABS\n- Use '6.1 Product Category Screening' to evaluate materials early in design.\n- Use '6.4 Advanced Material Selection' to track materials from design to installation, verifying they meet health and climate requirements.\n- Follow the instructions found at the top of each tab, referring to the 'References' tab when prompted.  \n- Inputs will be automatically tallied and results shown in the Compliance Summary & Point Totals table below. \n\n3. SUBMIT DOCUMENTATION\n- Submit this completed template and supporting documentation (e.g., product cut sheets) as part of the project's Pre-build (6.1) and Post-build (6.4) submissions.\n\nFor more information about the Criteria 6.1 & 6.4 requirements and documentation instructions, review the Green Communities website (https://www.greencommunitiesonline.org/ ), and the 'References' tab at the end of this workbook. "]
[]
[null,"Project Name:  ",null,"Submission Date:  "]
[]
[null,"Compliance Summary & Point Totals"]
[]
[null,"Criterion",null,"Optional Points Achieved"]
[null,"6.1 Product Category Screening   (Optional 4 points)"]
[null,"Embodied Carbon",{"$f":"IF('6.1 Product Category Screening'!C11=\"\",\"Category 1\",'6.1 Product Category Screening'!C11)","v":"Category 1"}]
[null,null,{"$f":"IF('6.1 Product Category Screening'!C12=\"\",\"Category 2\",'6.1 Product Category Screening'!C12)","v":"Category 2"}]
[null,null,{"$f":"IF('6.1 Product Category Screening'!C13=\"\",\"Category 3\",'6.1 Product Category Screening'!C13)","v":"Category 3"}]
[null,"Material Health",{"$f":"IF('6.1 Product Category Screening'!C23=\"\",\"Category 1\",'6.1 Product Category Screening'!C23)","v":"Category 1"}]
[null,null,{"$f":"IF('6.1 Product Category Screening'!C24=\"\",\"Category 2\",'6.1 Product Category Screening'!C24)","v":"Category 2"}]
[null,null,{"$f":"IF('6.1 Product Category Screening'!C25=\"\",\"Category 3\",'6.1 Product Category Screening'!C25)","v":"Category 3"}]
[null,"6.4 Advanced Material Selection"]
[null,"Adhesives and sealants",null,{"$f":"'6.4 Advanced Material Selection'!L9","v":"NA"}]
[null,"Cladding, exterior wall",null,{"$f":"'6.4 Advanced Material Selection'!L114","v":""}]
[null,"Concrete",null,{"$f":"'6.4 Advanced Material Selection'!L219","v":""}]
[null,"Flooring",null,{"$f":"'6.4 Advanced Material Selection'!L324","v":""}]
[null,"Gypsum wallboard",null,{"$f":"'6.4 Advanced Material Selection'!L429","v":""}]
[null,"Insulation",null,{"$f":"'6.4 Advanced Material Selection'!L534","v":""}]
[null,"Paints and other coatings"]
[null,"Steel        "]
[null,"Wall coverings",null,{"$f":"'6.4 Advanced Material Selection'!L849","v":"NA"}]
[null,"Wood, composite",null,{"$f":"'6.4 Advanced Material Selection'!L954","v":""}]
[null,"Wood, non-composite",null,{"$f":"'6.4 Advanced Material Selection'!L1059","v":""}]
[]
[null,"Total Optional Points for Criteria 6.1 & 6.4  "]
[]
[]
[null,"Responsible Party Signature:      "]
[null,"Role: "]
[]
[]
[]
[]
[null,"Last updated: August 2026"]

{"sheet":"6.1 Product Category Screening","index":1,"n_rows":22,"n_cols":8,"rows_kept":22,"cut":false,"hidden":false,"merged":[[5,2,5,3],[3,4,3,5],[8,6,8,7],[20,6,20,7],[8,1,9,1],[20,1,21,1],[8,2,8,5],[20,2,20,5],[0,1,0,4],[4,1,4,4],[2,4,2,5],[2,7,2,8],[3,1,3,3],[2,1,2,3]]}
[null,"6.1 Product Category Screening  (Optional 4 points)"]
[]
[null,"INSTRUCTIONS:",null,null,"  LEGEND:"]
[null,"To expand or collapse instructions/legend, use 'Show/Hide Instructions' button in Column I.\n\nINTENT: Use this tool early in design to understand the impact of material choices.\n\n1. IDENTIFY TARGETED PRODUCTS\n- Choose at least 3 product categories each for embodied carbon and material health (Column C).\n\n2. SCREEN USING APPROVED RESOURCES\n- Choose any appropriate screening resource for each category (Column D) using the dropdown.\n- Use the chosen resource to evaluate the potential impacts of different product selections.\n- For embodied carbon, prioritize % reduction in GWP (kgCO2e/m2) - assume a 60 year service life.\n- For material health, prioritize avoidance of substances of concern.\n\n3. SHARE FINDINGS\n- Share findings with team members who hold decision-making power for the products in question. \n- Regardless of outcome, share the reflection of the findings and decisions (Column F) at Prebuild.\n\n4. SUBMIT SCREENING TEMPLATE\n- To earn credit in 6.1, this completed template must be submitted at Prebuild. \n- At least three product categories must be screened for both Embodied Carbon and Material Health. \n- Additional categories may be evaluated, but only the first three count toward 6.1 compliance.\n\n5. OPTIONAL - POST-BUILD REFLECTION\n- Document whether the screening influenced final product selection (Column G/H) at post-build.\n- To expand or collapse post-build columns, use 'Show/Hide Post- Build' button in Column I.\n\nTo ensure proper print settings, select 'Fit All Columns on One Page.'",null,null,"                    \n\n                White cells: Editable; enter product data here\n\n                    \n                Green cells: Pre-Build evaluation (required submission)\n\n\n                Blue cells: Post-Build evaluation (recommended submission)"]
[]
[null,"Project Name:",{"$f":"IF('Instructions & Summary'!C7=\"\",\"\",'Instructions & Summary'!C7)","v":""},null,"Submission Date:   ",{"$f":"IF('Instructions & Summary'!E7=\"\",\"\",'Instructions & Summary'!E7)","v":""}]
[]
[null,"6.1 Embodied Carbon Screening"]
[null,"\n\n\nSpec Reference\n(Optional)","Pre-Build",null,null,null,"Post-Build"]
[null,null,"Product Category\n(Choose one)","Screening Resource\n(Choose one)","Were results shared with appropriate team members? (Yes / No)","Screening Results Reflection \n(Highest impact products, opportunities, challenges)","Did screening (6.1) inform product selection (6.4)? (Yes / No)","Final Reflection\n(Optional)"]
[]
[]
[]
[]
[]
[]
[]
[]
[]
[null,"6.1 Material Health Screening"]
[null,"\n\n\nSpec Reference\n(Optional)","Pre-Build",null,null,null,"Post-Build"]
[null,null,"Product Category\n(Choose one)","Screening Resource\n(Choose one)","Were results shared with appropriate team members? (Yes / No)","Screening Results Reflection \n(Highest impact products, opportunities, challenges)","Did screening (6.1) inform product selection (6.4)? (Yes / No)","Final Reflection\n(Optional)"]

{"sheet":"6.4 Advanced Material Selection","index":2,"n_rows":1164,"n_cols":17,"rows_kept":1164,"cut":false,"hidden":false,"merged":[[0,1,0,7],[2,8,2,9],[3,8,3,9],[8,0,1058,0],[429,6,429,10],[429,1,429,4],[430,1,431,1],[534,1,534,4],[324,6,324,10],[534,6,534,10],[219,1,219,4],[219,6,219,10],[325,1,326,1],[325,8,325,10],[640,1,641,1],[640,2,641,2],[640,3,641,3],[430,2,431,2],[322,1,322,3],[427,1,427,3],[742,1,742,3],[952,1,952,3],[112,1,112,3],[745,2,746,2],[1163,1,1163,4],[1163,6,1163,10],[115,4,116,4],[115,7,140,11],[9,1,9,4],[9,6,9,10],[849,1,849,4],[849,6,849,10],[850,1,851,1],[744,1,744,4],[745,1,746,1],[220,6,220,7],[1060,2,1061,2],[1060,3,1061,3],[1060,4,1061,4],[850,2,851,2],[850,7,856,11],[220,2,221,2],[220,3,221,3],[325,3,326,3],[640,4,641,4],[430,4,431,4],[1057,1,1057,3],[745,9,745,10],[1060,7,1162,11],[744,6,744,10],[325,4,326,4],[1060,1,1061,1],[745,6,745,8],[955,8,955,9],[535,10,541,11],[535,8,535,9],[955,1,956,1],[954,6,954,10],[954,1,954,4],[639,1,639,4],[535,1,536,1],[850,3,851,3],[850,4,851,4],[325,6,325,7],[430,6,430,7],[745,4,746,4],[745,3,746,3],[639,6,639,10],[745,11,751,11],[533,1,533,4],[638,1,638,4],[848,1,848,4],[953,1,953,4],[10,6,10,8],[640,6,640,8],[640,10,640,11],[325,2,326,2],[955,4,956,4],[955,6,955,7],[955,2,956,2],[955,3,956,3],[10,2,11,2],[10,1,11,1],[114,6,114,10],[220,1,221,1],[535,2,536,2],[430,8,436,11],[535,4,536,4],[430,3,431,3],[217,1,217,3],[847,1,847,3],[1162,1,1162,3],[532,1,532,3],[637,1,637,3],[3,1,3,7],[2,1,2,7],[324,1,324,4],[8,1,8,4],[113,1,113,4],[218,1,218,4],[323,1,323,4],[115,2,116,2],[115,3,116,3],[7,6,7,11],[7,1,7,4],[10,4,11,4],[220,4,221,4],[114,1,114,4],[115,1,116,1],[10,3,11,3],[5,1,5,2],[5,3,5,4],[535,3,536,3],[1059,1,1059,4],[1059,6,1059,10]]}
[null,"6.4 Advanced Material Selection (Mandatory & Optional, 31 points maximum)"]
[]
[null,"INSTRUCTIONS",null,null,null,null,null,null,"LEGEND"]
[null,"To expand or collapse instructions/legend, use 'Show/Hide Instructions' button in Column M.\n\nINTENT: Track materials from design through installation and confirm compliance with health and climate impact requirements. \n\n1. IDENTIFY PRODUCTS AND REQUIREMENTS APPLICABLE TO THE PROJECT\n- Use 'Show/Hide Category' buttons (Column M) to expand or collapse sections, and 'Show/Hide Rows' as needed to enter more products.\n- Use the criteria or 'References' tab to locate specific requirements and approved certifications/standards.\n- Be sure to select the Option pursued (Column L) where applicable to accurately tally points.\n\n2. DOCUMENT ADVANCED MATERIALS SELECTED AND INSTALLED\n- Enter product data in white cells, including name, manufacturer, quantity, and any applicable requirements met (Columns G-L).\n- For each category, track installed quantity by either cost ($) or volume (L).\n- If multiple compliance options exist, confirm the path chosen in Column L.\n- Optional points and mandatory requirements will auto-populate based on data entered.\n- Include all installed products needed to demonstrate compliance (use additional rows as needed).\n- Not all options apply to all products; 'NA' indicates requirement or points are not applicable.\n- To remove data, right-click selected cell(s) and choose 'Clear Contents.'\n\n3. SUBMIT SCREENING TEMPLATE\n- This completed template must be submitted at Post-build to satisfy mandatory and optional criteria. \n\nTo ensure proper print settings, select 'Fit All Columns on One Page.'",null,null,null,null,null,null,"                \n\n              White cells: Editable; enter product data here\n\n\n              Yellow cells: Auto-populated   \n                \n\n              Green cells: Mandatory criteria\n\n\n              Blue cells: Optional criteria"]
[]
[null,"Project Name:",null,{"$f":"IF('Instructions & Summary'!C7=\"\",\"\",'Instructions & Summary'!C7)","v":""},null,null,"Submission Date:",{"$f":"IF('Instructions & Summary'!E7=\"\",\"\",'Instructions & Summary'!E7)","v":""}]
[]
[null," Product Information",null,null,null,null," 6.4 Advanced Material Selection"]
[null," Adhesives and sealants, wet-applied interior",null,null,null,null,"Mandatory requirements met?",{"$f":"IF(OR(H113=\"\",I113=\"\"),\"\",IF(AND(H113=100%,I113>=80%),\"Yes\",\"No\"))","v":""},null,null,"Optional points total:","NA"]
[null," Mandatory - All adhesives and sealants applied inside the air barrier.\n  *See Table 6.4a in 'References' tab for VOC Content thresholds.",null,null,null,null,"Option pursued:",null,null,null,null,"NA"]
[null,null,"Product\nName","Manufacturer \nName","Estimated Product Cost\n(Optional for this category)",null,"Mandatory\nNo additional points"]
[null,null,null,null,null,null,"Estimated Product Volume\n (Liters)","VOC Content \n(g/L)\n100% compliance\nIf not met, type 'NA' in cell.","Approved VOC Emissions Certification or Standard\n≥ 80% compliance\nIf no certification/standard is available, type 'NA' in cell."]
[null,1]
[null,{"$f":"B13+1","v":2}]
[null,{"$f":"B14+1","v":3}]
[null,{"$f":"B15+1","v":4},null,null,null,null,null,null,null,null,null,null,null,null,null,null,"`"]
[null,5,null,null,null,null,null,null,null,null,null,null,null,null,"`"]
[null,{"$f":"B17+1","v":6}]
[null,7]
[null,8]
[null,9]
[null,10]
[null,11]
[null,12]
[null,13]
[null,14]
[null,15]
[null,16]
[null,17]
[null,18]
[null,19]
[null,20]
[null,21]
[null,22]
[null,23]
[null,24]
[null,25]
[null,26]
[null,27]
[null,28]
[null,29]
[null,30]
[null,31]
[null,32]
[null,33]
[null,34]
[null,35]
[null,36]
[null,37]
[null,38]
[null,39]
[null,40]
[null,41]
[null,42]
[null,43]
[null,44]
[null,45]
[null,46]
[null,47]
[null,48]
[null,49]
[null,50]
[null,51]
[null,52]
[null,53]
[null,54]
[null,55]
[null,56]
[null,57]
[null,58]
[null,59]
[null,60]
[null,61]
[null,62]
[null,63]
[null,64]
[null,65]
[null,66]
[null,67]
[null,{"$f":"B79+1","v":68}]
[null,69]
[null,70]
[null,71]
[null,72]
[null,73]
[null,74]
[null,75]
[null,76]
[null,77]
[null,78]
[null,79]
[null,80]
[null,{"$f":"B92+1","v":81}]
[null,82]
[null,83]
[null,84]
[null,85]
[null,86]
[null,87]
[null,88]
[null,89]
[null,90]
[null,{"$f":"B102+1","v":91}]
[null,92]
[null,93]
[null,94]
[null,95]
[null,96]
[null,97]
[null,98]
[null,{"$f":"B110+1","v":99}]
[null,{"$f":"B111+1","v":100}]
[null,"Compliance Summary:",null,null,{"$f":"SUM(E13:E112)","v":0},null,{"$f":"SUMPRODUCT(IFERROR(--G13:G112,0))","v":0},{"$f":"IFERROR((COUNTA(H13:H112)-COUNTIF(H13:H112,\"NA\"))/COUNTA(H13:H112),\"\")","v":""},{"$f":"IFERROR(\nSUMPRODUCT(\n--(I13:I112<>\"\"),\n--(I13:I112<>\"NA\"),\nIFERROR(VALUE(G13:G112),0)\n)\n/SUMPRODUCT(IFERROR(VALUE(G13:G112),0)),\n\"\")","v":""}]
[null," Cladding, exterior wall",null,null,null,null,null,null,null,null,"  Optional points total:    ",{"$f":"IF(G218=\"\",\"\",\nIF(G218=100%,2,0))","v":""}]
[null," Optional",null,null,null,null,"Option pursued:    ",null,null,null,null,"NA"]
[null,null,"Product\nName","Manufacturer \nName","Estimated Product Cost",null,"Optional\n2 points"]
[null,null,null,null,null,null,"Compliant Cladding Material\n(Choose types)\n100% compliance"]
[null,1]
[null,{"$f":"B118+1","v":2}]
[null,{"$f":"B119+1","v":3}]
[null,{"$f":"B120+1","v":4}]
[null,5]
[null,{"$f":"B122+1","v":6}]
[null,7]
[null,8]
[null,9]
[null,10]
[null,11]
[null,12]
[null,13]
[null,14]
[null,15]
[null,16]
[null,17]
[null,18]
[null,19]
[null,20]
[null,21]
[null,22]
[null,23]
[null,24]
[null,25]
[null,26]
[null,27]
[null,28]
[null,29]
[null,30]
[null,31]
[null,32]
[null,33]
[null,34]
[null,35]
[null,36]
[null,37]
[null,38]
[null,39]
[null,40]
[null,41]
[null,42]
[null,43]
[null,44]
[null,45]
[null,46]
[null,47]
[null,48]
[null,49]
[null,50]
[null,51]
[null,52]
[null,53]
[null,54]
[null,55]
[null,56]
[null,57]
[null,58]
[null,59]
[null,60]
[null,61]
[null,62]
[null,63]
[null,64]
[null,65]
[null,66]
[null,67]
[null,{"$f":"B184+1","v":68}]
[null,69]
[null,70]
[null,71]
[null,72]
[null,73]
[null,74]
[null,75]
[null,76]
[null,77]
[null,78]
[null,79]
[null,80]
[null,81]
[null,82]
[null,83]
[null,84]
[null,85]
[null,86]
[null,87]
[null,88]
[null,89]
[null,90]
[null,91]
[null,92]
[null,93]
[null,94]
[null,95]
[null,96]
[null,97]
[null,98]
[null,{"$f":"B215+1","v":99}]
[null,{"$f":"B216+1","v":100}]
[null,"Compliance Summary:",null,null,{"$f":"SUM(E118:E217)","v":0},null,{"$f":"IF(COUNTIF(G118:G217,\"?*\")=0,\"\",IF(OR(H218=\"\",E218=\"\",E218=0),\"\",H218/E218))","v":""},{"$f":"SUMIFS(E118:E217,G118:G217,\"<>Not a compliant cladding material\",G118:G217,\"<>\")","v":0}]
[null," Concrete",null,null,null,null,null,null,null,null,"  Optional points total:",{"$f":"IF(OR(G323=\"\",I323=\"\",J323=\"\"),\"\",\nIF(AND(G323>=90%,I323>=90%),5,\nIF(AND(G323>=90%,J323>=90%),2,0)))","v":""}]
[null," Optional - Meet requirements and earn either 2 or 5 points\n  *See CLF Baseline in 'References' tab OR industry-average EPDs",null,null,null,null,"Option pursued:",null,null,null,null,"NA"]
[null,null,"Product\nName","Manufacturer \nName","Estimated Product Cost",null,"Required for Optional Points\nProvide EPD & GWP",null,"Optional\n5 points","Optional\n2 points","`"]
[null,null,null,null,null,null,"Product Specific EPD?\n(Yes / No)\n≥ 90% compliance","Global Warming Potential \n(kgCO2e/m2)","Is GWP at least 20% lower than regional average*?\n(Yes / No)\n≥ 90% compliance","Is GWP at or below regional average*?\n(Yes / No)\n≥ 90% compliance"]
[null,1]
[null,{"$f":"B223+1","v":2}]
[null,{"$f":"B224+1","v":3}]
[null,{"$f":"B225+1","v":4}]
[null,5]
[null,{"$f":"B227+1","v":6}]
[null,7]
[null,8]
[null,9]
[null,10]
[null,11]
[null,12]
[null,13]
[null,14]
[null,15]
[null,16]
[null,17]
[null,18]
[null,19]
[null,20]
[null,21]
[null,22]
[null,23]
[null,24]
[null,25]
[null,26]
[null,27]
[null,28]
[null,29]
[null,30]
[null,31]
[null,32]
[null,33]
[null,34]
[null,35]
[null,36]
[null,37]
[null,38]
[null,39]
[null,40]
[null,41]
[null,42]
[null,43]
[null,44]
[null,45]
[null,46]
[null,47]
[null,48]
[null,49]
[null,50]
[null,51]
[null,52]
[null,53]
[null,54]
[null,55]
[null,56]
[null,57]
[null,58]
[null,59]
[null,60]
[null,61]
[null,62]
[null,63]
[null,64]
[null,65]
[null,66]
[null,67]
[null,{"$f":"B289+1","v":68}]
[null,69]
[null,70]
[null,71]
[null,72]
[null,73]
[null,74]
[null,75]
[null,76]
[null,77]
[null,78]
[null,79]
[null,80]
[null,81]
[null,82]
[null,83]
[null,84]
[null,85]
[null,86]
[null,87]
[null,88]
[null,89]
[null,90]
[null,91]
[null,92]
[null,93]
[null,94]
[null,95]
[null,96]
[null,97]
[null,98]
[null,{"$f":"B320+1","v":99}]
[null,{"$f":"B321+1","v":100}]
[null,"Compliance Summary:",null,null,{"$f":"SUM(E223:E322)","v":0},null,{"$f":"IF(COUNTIF(G223:G322,\"?*\")=0,\"\",IF(OR(K323=\"\",E323=\"\",E323=0),\"\",K323/E323))","v":""},null,{"$f":"IF(COUNTIF(I223:I322,\"?*\")=0,\"\",IF(OR(L323=\"\",E323=\"\",E323=0),\"\",L323/E323))","v":""},{"$f":"IF(COUNTIF(J223:J322,\"?*\")=0,\"\",IF(OR(M323=\"\",E323=\"\",E323=0),\"\",M323/E323))","v":""},{"$f":" SUMPRODUCT(E223:E322*(G223:G322<>\"\")*(G223:G322<>\"No\"))","v":0},{"$f":" SUMPRODUCT(E223:E322*(I223:I322<>\"\")*(I223:I322<>\"No\"))","v":0},{"$f":" SUMPRODUCT(E223:E322*(J223:J322<>\"\")*(J223:J322<>\"No\"))","v":0}]
[null," Flooring",null,null,null,null,"Mandatory requirements met?",{"$f":"IF(AND(G428=\"\",H428=\"\",L428=\"\"),\"\",\nIF(OR(AND(G428=1,H428=1),AND(ISNUMBER(L428),L428>=0.9)),\n\"Yes\",\"No\"))","v":""},null,null,"Optional points total:",{"$f":"IF(AND(G428=\"\",H428=\"\",I428=\"\",J428=\"\",K428=\"\",L428=\"\"),\"\",\n    IF(L325=1,\n        IF(AND(ISNUMBER(L428),L428>=90%),4,0),\n        IF(L325=2,\n            IF(AND(G428=1,H428=1),\n                COUNTIF(I428:K428,1),\n                0\n            ),\n            0\n        )\n    )\n)","v":""}]
[null," Mandatory - Implement Option 1 or Option 2.",null,null,null,null,"Option pursued:\n(Choose one)"]
[null,null,"Product\nName","Manufacturer \nName","Estimated Product Cost",null,"Mandatory for Option 2\nMeet both requirements",null,"Option 2\n1 point each (maximum 3 points)",null,null,"Option 1\n4 points"]
[null,null,null,null,null,null,"Approved VOC Emissions Certification/Standard OR Inherently Non-Emitting\n100% compliance\nIf no certification/standard available, type 'NA' in cell.","Prohibited flooring type?\n(Yes / No)\n100% compliance (not prohibited)","Free of PFAS? AND\nIf site-applied, free of epoxy/ polyurethane?\n(Yes / No)\n100% compliance","Is this a carpet?\n(Yes / No)\n100% compliance NO carpet","Contains vinyl?\n100% compliance NO vinyl","Best-in-class \nflooring \n(Choose types)\n≥ 90% compliance"]
[null,1,null,null,null,null,null,null,null,null,null,null,{"$f":" SUMPRODUCT(E328:E427*(G328:G427<>\"\")*(G328:G427<>\"NA\"))","v":0}]
[null,{"$f":"B328+1","v":2},null,null,null,null,null,null,null,null,null,null,{"$f":"SUMPRODUCT(E328:E427*(H328:H427=\"Not a prohibited flooring type\"))","v":0}]
[null,{"$f":"B329+1","v":3},null,null,null,null,null,null,null,null,null,null,{"$f":" SUMPRODUCT(E328:E427*(I328:I427<>\"\")*(I328:I427<>\"No\"))","v":0}]
[null,{"$f":"B330+1","v":4},null,null,null,null,null,null,null,null,null,null,{"$f":" SUMPRODUCT(E328:E427*(J328:J427<>\"\")*(J328:J427<>\"Yes\"))","v":0}]
[null,5,null,null,null,null,null,null,null,null,null,null,{"$f":" SUMPRODUCT(E328:E427*(K328:K427<>\"\")*(K328:K427<>\"Yes\"))","v":0}]
[null,{"$f":"B332+1","v":6}]
[null,7]
[null,8]
[null,9]
[null,10]
[null,11]
[null,12]
[null,13]
[null,14]
[null,15]
[null,16]
[null,17]
[null,18]
[null,19]
[null,20]
[null,21]
[null,22]
[null,23]
[null,24]
[null,25]
[null,26]
[null,27]
[null,28]
[null,29]
[null,30]
[null,31]
[null,32]
[null,33]
[null,34]
[null,35]
[null,36]
[null,37]
[null,38]
[null,39]
[null,40]
[null,41]
[null,42]
[null,43]
[null,44]
[null,45]
[null,46]
[null,47]
[null,48]
[null,49]
[null,50]
[null,51]
[null,52]
[null,53]
[null,54]
[null,55]
[null,56]
[null,57]
[null,58]
[null,59]
[null,60]
[null,61]
[null,62]
[null,63]
[null,64]
[null,65]
[null,66]
[null,67]
[null,{"$f":"B394+1","v":68}]
[null,69]
[null,70]
[null,71]
[null,72]
[null,73]
[null,74]
[null,75]
[null,76]
[null,77]
[null,78]
[null,79]
[null,80]
[null,81]
[null,82]
[null,83]
[null,84]
[null,85]
[null,86]
[null,87]
[null,88]
[null,89]
[null,90]
[null,91]
[null,92]
[null,93]
[null,94]
[null,95]
[null,96]
[null,97]
[null,98]
[null,{"$f":"B425+1","v":99}]
[null,{"$f":"B426+1","v":100}]
[null,"Compliance Summary:",null,null,{"$f":"SUM(E328:E427)","v":0},null,{"$f":"IF(COUNTIF(G328:G427,\"?*\")=0,\"\",IF(OR(M328=\"\",E428=\"\",E428=0),\"\",M328/E428))","v":""},{"$f":"IF(COUNTIF(H328:H427,\"?*\")=0,\"\",IF(OR(M329=\"\",E428=\"\",E428=0),\"\",M329/E428))","v":""},{"$f":"IF(COUNTIF(I328:I427,\"?*\")=0,\"\",IF(OR(M330=\"\",E428=\"\",E428=0),\"\",M330/E428))","v":""},{"$f":"IF(COUNTIF(J328:J427,\"?*\")=0,\"\",IF(OR(M331=\"\",E428=\"\",E428=0),\"\",M331/E428))","v":""},{"$f":"IF(COUNTIF(K328:K427,\"?*\")=0,\"\",IF(OR(M332=\"\",E428=\"\",E428=0),\"\",M332/E428))","v":""},{"$f":"IF(COUNTIF(L328:L427,\"?*\")=0,\"\",IF(OR(M428=\"\",E428=\"\",E428=0),\"\",M428/E428))","v":""},{"$f":" SUMPRODUCT(E328:E427*(L328:L427<>\"\")*(L328:L427<>\"Not a best-in-class flooring type\"))","v":0}]
[null," Gypsum wallboard",null,null,null,null,null,null,null,null,"  Optional points total:",{"$f":"IF(OR(G533=\"\",H533=\"\"),\"\",IF(AND(G533>=60%,H533>=60%),2,0))","v":""}]
[null," Optional - Meet both requirements",null,null,null,null,"Option pursued:",null,null,null,null,"NA"]
[null,null,"Product\nName","Manufacturer \nName","Estimated Product Cost",null,"Optional\nMeet both requirements for 2 points"]
[null,null,null,null,null,null,"Approved VOC Emissions Certification or Standard\n≥ 60% compliance\nIf no certification/standard available, type 'NA' in cell.","Lightweight gypsum wallboard?\n(Yes / No)\n≥ 60% compliance"]
[null,1]
[null,{"$f":"B433+1","v":2}]
[null,{"$f":"B434+1","v":3}]
[null,{"$f":"B435+1","v":4}]
[null,5]
[null,{"$f":"B437+1","v":6}]
[null,7]
[null,8]
[null,9]
[null,10]
[null,11]
[null,12]
[null,13]
[null,14]
[null,15]
[null,16]
[null,17]
[null,18]
[null,19]
[null,20]
[null,21]
[null,22]
[null,23]
[null,24]
[null,25]
[null,26]
[null,27]
[null,28]
[null,29]
[null,30]
[null,31]
[null,32]
[null,33]
[null,34]
[null,35]
[null,36]
[null,37]
[null,38]
[null,39]
[null,40]
[null,41]
[null,42]
[null,43]
[null,44]
[null,45]
[null,46]
[null,47]
[null,48]
[null,49]
[null,50]
[null,51]
[null,52]
[null,53]
[null,54]
[null,55]
[null,56]
[null,57]
[null,58]
[null,59]
[null,60]
[null,61]
[null,62]
[null,63]
[null,64]
[null,65]
[null,66]
[null,67]
[null,{"$f":"B499+1","v":68}]
[null,69]
[null,70]
[null,71]
[null,72]
[null,73]
[null,74]
[null,75]
[null,76]
[null,77]
[null,78]
[null,79]
[null,80]
[null,81]
[null,82]
[null,83]
[null,84]
[null,85]
[null,86]
[null,87]
[null,88]
[null,89]
[null,90]
[null,91]
[null,92]
[null,93]
[null,94]
[null,95]
[null,96]
[null,97]
[null,98]
[null,{"$f":"B530+1","v":99}]
[null,{"$f":"B531+1","v":100}]
[null,"Compliance Summary:",null,null,{"$f":"SUM(E433:E532)","v":0},null,{"$f":"IF(COUNTIF(G433:G532,\"?*\")=0,\"\",IF(OR(I533=\"\",E533=\"\",E533=0),\"\",I533/E533))","v":""},{"$f":"IF(COUNTIF(H433:H532,\"?*\")=0,\"\",IF(OR(J533=\"\",E533=\"\",E533=0),\"\",J533/E533))","v":""},{"$f":" SUMPRODUCT(E433:E532*(G433:G532<>\"\")*(G433:G532<>\"NA\"))","v":0},{"$f":" SUMPRODUCT(E433:E532*(H433:H532<>\"\")*(H433:H532<>\"No\"))","v":0}]
[null," Insulation",null,null,null,null,"Mandatory requirements met?",{"$f":"IF(AND(G638=\"\",H638=\"\",I638=\"\",J638=\"\"),\"\",\nIF(OR(\nAND(G638<>\"\",G638=100%),\nAND(H638<>\"\",H638>=90%),\nAND(I638<>\"\",I638=100%,J638<>\"\",J638>=75%)\n),\"Yes\",\"No\"))","v":""},null,null,"Optional points total:",{"$f":"IF(L535=\"\",\"\",\nIF(L535=1,\n    IF(AND(ISNUMBER(I638),I638>=100%,ISNUMBER(J638),J638>=75%),5,0),\n    IF(L535=2,\n        IF(AND(ISNUMBER(H638),H638>=90%),3,0),\n        IF(L535=3,0,0)\n    )\n))","v":""}]
[null," Mandatory - Implement Option 1, 2 or 3. Points available for Option 1 or 2.\n *See 'References' tab for insulation standards.",null,null,null,null,"Option pursued:\n(Choose one)"]
[null,null,"Product\nName","Manufacturer \nName","Estimated Product Cost",null,"Option 3\nMinimum requirement","Option 2\n3 points","Option 1\nMeet both requirements for 5 points"]
[null,null,null,null,null,null,"Complies with minimum insulation standards?*\n(Choose standard)\n100% compliance","Complies with intermediate insulation standards?\n(Choose type)\n≥ 90% compliance","Meets Option 3 standards?\n(Yes / No)\n≥ 100% compliance","Bio-based?\n(Yes / No)\n≥ 75% compliance"]
[null,1]
[null,{"$f":"B538+1","v":2}]
[null,{"$f":"B539+1","v":3}]
[null,{"$f":"B540+1","v":4}]
[null,5]
[null,{"$f":"B542+1","v":6}]
[null,7]
[null,8]
[null,9]
[null,10]
[null,11]
[null,12]
[null,13]
[null,14]
[null,15]
[null,16]
[null,17]
[null,18]
[null,19]
[null,20]
[null,21]
[null,22]
[null,23]
[null,24]
[null,25]
[null,26]
[null,27]
[null,28]
[null,29]
[null,30]
[null,31]
[null,32]
[null,33]
[null,34]
[null,35]
[null,36]
[null,37]
[null,38]
[null,39]
[null,40]
[null,41]
[null,42]
[null,43]
[null,44]
[null,45]
[null,46]
[null,47]
[null,48]
[null,49]
[null,50]
[null,51]
[null,52]
[null,53]
[null,54]
[null,55]
[null,56]
[null,57]
[null,58]
[null,59]
[null,60]
[null,61]
[null,62]
[null,63]
[null,64]
[null,65]
[null,66]
[null,67]
[null,{"$f":"B604+1","v":68}]
[null,69]
[null,70]
[null,71]
[null,72]
[null,73]
[null,74]
[null,75]
[null,76]
[null,77]
[null,78]
[null,79]
[null,80]
[null,81]
[null,82]
[null,83]
[null,84]
[null,85]
[null,86]
[null,87]
[null,88]
[null,89]
[null,90]
[null,91]
[null,92]
[null,93]
[null,94]
[null,95]
[null,96]
[null,97]
[null,98]
[null,{"$f":"B635+1","v":99}]
[null,{"$f":"B636+1","v":100}]
[null,"Compliance Summary:",null,null,{"$f":"SUM(E538:E637)","v":0},null,{"$f":"IF(COUNTIF(G538:G637,\"?*\")=0,\"\",IF(OR(K638=\"\",E638=\"\",E638=0),\"\",K638/E638))","v":""},{"$f":"IF(COUNTIF(H538:H637,\"?*\")=0,\"\",IF(OR(L638=\"\",E638=\"\",E638=0),\"\",L638/E638))","v":""},{"$f":"IF(COUNTIF(I538:I637,\"?*\")=0,\"\",IF(OR(M638=\"\",E638=\"\",E638=0),\"\",M638/E638))","v":""},{"$f":"IF(COUNTIF(J538:J637,\"?*\")=0,\"\",IF(OR(N638=\"\",E638=\"\",E638=0),\"\",N638/E638))","v":""},{"$f":" SUMPRODUCT(E538:E637*(G538:G637<>\"\")*(G538:G637<>\"No: Product is one of the above insulation types and does not comply with the minimum standard.\"))","v":0},{"$f":" SUMPRODUCT(E538:E637*(H538:H637<>\"\")*(H538:H637<>\"Not an intermediate insulation material\"))","v":0},{"$f":" SUMPRODUCT(E538:E637*(I538:I637<>\"\")*(I538:I637<>\"No\"))","v":0},{"$f":" SUMPRODUCT(E538:E637*(J538:J637<>\"\")*(J538:J637<>\"Not a bio-based insulation material\"))","v":0}]
[null," Paints and other coatings, wet-applied interior",null,null,null,null,"Mandatory requirements met?",{"$f":"IF(AND(H743=\"\",I743=\"\",J743=\"\",K743=\"\",L743=\"\"),\"\",\nIF(OR(\nAND(H743=100%,ISNUMBER(I743),I743>=90%),\nAND(H743=100%,ISNUMBER(I743),I743>=90%,ISNUMBER(J743),J743>=90%),\nAND(ISNUMBER(K743),ISNUMBER(L743),K743>=50%,L743>=90%)\n),\"Yes\",\"No\"))","v":""},null,null,"Optional points total:",{"$f":"IF(L640=\"\",\"\",\nIF(COUNT(H643:K743)=0,0,\nIF(L640=1,\n    IF(AND(K743>=50%,J638>=90%),4,0),\n    IF(L640=2,\n        IF(AND(J743>=90%,I743>=90%,H743=100%),2,0),\n        IF(L640=3,0,0)\n    )\n)))","v":""}]
[null," Mandatory - Implement Option 1, 2 or 3. Additional points available for 1 or 2.\n *See Table 6.4b in 'References' tab for VOC Content thresholds.",null,null,null,null,"Option pursued:   \n(Choose one)   "]
[null,null,"Product\nName","Manufacturer \nName","Estimated Product Cost",null,"Option 3\nMandatory requirement, also required for Options 1 or 2",null,null,"Option 2\nMeet requirement + Option 3 for 2 points","Option 1\nMeet both requirements for 4 points"]
[null,null,null,null,null,null,"Estimated Product Volume \n(Liters)","VOC Content (g/L)\nAll products must meet thresholds* for product type (100% compliance)\nIf thresholds are not met, type 'NA' in cell.","Approved VOC Emissions Certification or Standard\n≥ 90% compliance by volume\nIf no certification/standard available, type 'NA' in cell.","Free of PFAS?\n(Yes / No)\n≥ 90% compliance","Mineral paint?\n(Yes / No)\n≥ 50% compliance","Product meets Option 3?\n(Yes / No)\n≥ 90% compliance"]
[null,1]
[null,{"$f":"B643+1","v":2}]
[null,{"$f":"B644+1","v":3}]
[null,{"$f":"B645+1","v":4}]
[null,5]
[null,{"$f":"B647+1","v":6}]
[null,7]
[null,8]
[null,9]
[null,10]
[null,11]
[null,12]
[null,13]
[null,14]
[null,15]
[null,16]
[null,17]
[null,18]
[null,19]
[null,20]
[null,21]
[null,22]
[null,23]
[null,24]
[null,25]
[null,26]
[null,27]
[null,28]
[null,29]
[null,30]
[null,31]
[null,32]
[null,33]
[null,34]
[null,35]
[null,36]
[null,37]
[null,38]
[null,39]
[null,40]
[null,41]
[null,42]
[null,43]
[null,44]
[null,45]
[null,46]
[null,47]
[null,48]
[null,49]
[null,50]
[null,51]
[null,52]
[null,53]
[null,54]
[null,55]
[null,56]
[null,57]
[null,58]
[null,59]
[null,60]
[null,61]
[null,62]
[null,63]
[null,64]
[null,65]
[null,66]
[null,67]
[null,{"$f":"B709+1","v":68}]
[null,69]
[null,70]
[null,71]
[null,72]
[null,73]
[null,74]
[null,75]
[null,76]
[null,77]
[null,78]
[null,79]
[null,80]
[null,81]
[null,82]
[null,83]
[null,84]
[null,85]
[null,86]
[null,87]
[null,88]
[null,89]
[null,90]
[null,91]
[null,92]
[null,93]
[null,94]
[null,95]
[null,96]
[null,97]
[null,98]
[null,{"$f":"B740+1","v":99}]
[null,{"$f":"B741+1","v":100}]
[null,"Compliance Summary:",null,null,{"$f":"SUM(E643:E742)","v":0},null,{"$f":"SUMPRODUCT(IFERROR(--G643:G742,0))","v":0},{"$f":"IFERROR((COUNTA(H643:H742)-COUNTIF(H643:H742,\"NA\"))/COUNTA(H643:H742),\"\")","v":""},{"$f":"IFERROR(\nSUMPRODUCT(\n--(I643:I742<>\"\"),\n--(I643:I742<>\"NA\"),\nIFERROR(VALUE(G643:G742),0)\n)\n/SUMPRODUCT(IFERROR(VALUE(G643:G742),0)),\n\"\")","v":""},{"$f":"IFERROR(\nCOUNTIF(J643:J742,\"Yes\")/(COUNTIF(J643:J742,\"Yes\")+COUNTIF(J643:J742,\"No\")),\n\"\"\n)","v":""},{"$f":"IFERROR(\nCOUNTIF(K643:K742,\"Yes\")/(COUNTIF(K643:K742,\"Yes\")+COUNTIF(K643:K742,\"No\")),\n\"\"\n)","v":""},{"$f":"IFERROR(\nSUMPRODUCT(\n--(L643:L742<>\"\"),\n--(L643:L742<>\"NA\"),\n--(K643:K742<>\"Yes\"),\nIFERROR(VALUE(G643:G742),0)\n)\n/\nSUMPRODUCT(\n--(K643:K742<>\"Yes\"),\nIFERROR(VALUE(G643:G742),0)\n),\n\"\")","v":""}]
[null," Steel",null,null,null,null,null,null,null,null,"  Optional points total:",{"$f":"IF(L745=\"\",\"\",\nIF(L745=2,\n    IF(\n        AND(\n            COUNT(M743:O743)>0,\n            IFERROR(M743=\"\",TRUE) * IFERROR(M748=0,TRUE) + IFERROR(M744/M748>=0.75,FALSE),\n            IFERROR(N743=\"\",TRUE) * IFERROR(N748=0,TRUE) + IFERROR(N744/N748>=0.75,FALSE),\n            IFERROR(O743=\"\",TRUE) * IFERROR(O748=0,TRUE) + IFERROR(O744/O748>=0.75,FALSE)\n        ),\n    3,0),\nIF(L745=1,\n    IF(OR(J848=100%,K848=100%),4,0),\n0)))","v":""},{"$f":"IF(SUMIFS(E748:E847,G748:G847,\"Steel deck\",I748:I847,\"Yes\")=0,\"\",SUMIFS(E748:E847,G748:G847,\"Steel deck\",I748:I847,\"Yes\"))","v":""},{"$f":"IF(SUMIFS(E748:E847,G748:G847,\"Cold-formed steel framing\",I748:I847,\"Yes\")=0,\"\",SUMIFS(E748:E847,G748:G847,\"Cold-formed steel framing\",I748:I847,\"Yes\"))","v":""},{"$f":"IF(SUMIFS(E748:E847,G748:G847,\"Structural steel\",I748:I847,\"Yes\")=0,\"\",SUMIFS(E748:E847,G748:G847,\"Structural steel\",I748:I847,\"Yes\"))","v":""}]
[null," Optional - Implement Option 1 or Option 2.\n *See CLF Baseline tables in 'References' tab ",null,null,null,null,"Option pursued:    \n(Choose one)    "]
[null,null,"Product\nName","Manufacturer \nName","Estimated Product Cost",null,"Option 2\n3 points",null,null,"Option 1\nMeet either requirement for 4 points"]
[null,null,null,null,null,null,"Steel Type\n(Choose type)","Global Warming Potential \n(kgCO2e/m2)","Is GWP at least 20% lower than CLF baseline*?\n≥ 75% compliance for each steel type","Steel produced by electric arc furnace?\n100% compliance","At least 90% recycled content?\n100% compliance"]
[null,1,"e","e",null,null,null,null,null,null,null,null,{"$f":"_xlfn.LET(_xlpm.x,SUMIFS(E748:E847,G748:G847,\"Steel deck\"),IF(_xlpm.x=0,\"\",_xlpm.x))","v":""},{"$f":"_xlfn.LET(_xlpm.x,SUMIFS(E748:E847,G748:G847,\"Cold-formed steel framing\"),IF(_xlpm.x=0,\"\",_xlpm.x))","v":""},{"$f":"_xlfn.LET(_xlpm.x,SUMIFS(E748:E847,G748:G847,\"Structural steel\"),IF(_xlpm.x=0,\"\",_xlpm.x))","v":""}]
[null,{"$f":"B748+1","v":2}]
[null,{"$f":"B749+1","v":3}]
[null,4]
[null,5]
[null,{"$f":"B752+1","v":6}]
[null,{"$f":"B753+1","v":7}]
[null,8]
[null,9]
[null,{"$f":"B756+1","v":10}]
[null,{"$f":"B757+1","v":11}]
[null,12]
[null,13]
[null,{"$f":"B760+1","v":14}]
[null,{"$f":"B761+1","v":15}]
[null,16]
[null,17]
[null,{"$f":"B764+1","v":18}]
[null,{"$f":"B765+1","v":19}]
[null,20]
[null,21]
[null,{"$f":"B768+1","v":22}]
[null,{"$f":"B769+1","v":23}]
[null,24]
[null,25]
[null,{"$f":"B772+1","v":26}]
[null,{"$f":"B773+1","v":27}]
[null,28]
[null,29]
[null,{"$f":"B776+1","v":30}]
[null,{"$f":"B777+1","v":31}]
[null,32]
[null,33]
[null,{"$f":"B780+1","v":34}]
[null,{"$f":"B781+1","v":35}]
[null,36]
[null,37]
[null,{"$f":"B784+1","v":38}]
[null,{"$f":"B785+1","v":39}]
[null,40]
[null,41]
[null,{"$f":"B788+1","v":42}]
[null,{"$f":"B789+1","v":43}]
[null,44]
[null,45]
[null,{"$f":"B792+1","v":46}]
[null,{"$f":"B793+1","v":47}]
[null,48]
[null,49]
[null,{"$f":"B796+1","v":50}]
[null,{"$f":"B797+1","v":51}]
[null,52]
[null,53]
[null,{"$f":"B800+1","v":54}]
[null,{"$f":"B801+1","v":55}]
[null,56]
[null,57]
[null,{"$f":"B804+1","v":58}]
[null,{"$f":"B805+1","v":59}]
[null,60]
[null,61]
[null,{"$f":"B808+1","v":62}]
[null,{"$f":"B809+1","v":63}]
[null,64]
[null,65]
[null,66]
[null,67]
[null,68]
[null,{"$f":"B815+1","v":69}]
[null,{"$f":"B816+1","v":70}]
[null,71]
[null,72]
[null,{"$f":"B819+1","v":73}]
[null,{"$f":"B820+1","v":74}]
[null,75]
[null,76]
[null,{"$f":"B823+1","v":77}]
[null,{"$f":"B824+1","v":78}]
[null,79]
[null,80]
[null,{"$f":"B827+1","v":81}]
[null,{"$f":"B828+1","v":82}]
[null,83]
[null,84]
[null,85]
[null,86]
[null,{"$f":"B833+1","v":87}]
[null,{"$f":"B834+1","v":88}]
[null,89]
[null,90]
[null,{"$f":"B837+1","v":91}]
[null,{"$f":"B838+1","v":92}]
[null,93]
[null,94]
[null,{"$f":"B841+1","v":95}]
[null,{"$f":"B842+1","v":96}]
[null,97]
[null,98]
[null,{"$f":"B845+1","v":99}]
[null,100]
[null,"Compliance Summary:",null,null,{"$f":"SUM(E748:E847)","v":0},null,null,null,{"$f":"IF(COUNTA(G748:G847)=0,\"\",\n\"Steel deck: \"&IFERROR(TEXT(M744/M748,\"0%\"),\"0%\")&CHAR(10)&\n\"Cold-formed steel framing: \"&IFERROR(TEXT(N744/N748,\"0%\"),\"0%\")&CHAR(10)&\n\"Structural steel: \"&IFERROR(TEXT(O744/O748,\"0%\"),\"0%\"))","v":""},{"$f":"IF(COUNTIF(J748:J847,\"?*\")=0,\"\",IF(OR(L848=\"\",E848=\"\",E848=0),\"\",L848/E848))","v":""},{"$f":"IF(COUNTA(K748:K847)=0,\"\",IF(OR(M848=\"\",E848=\"\",E848=0),\"\",M848/E848))","v":""},{"$f":"SUMIFS(E748:E847,J748:J847,\"<>No\",J748:J847,\"<>\")","v":0},{"$f":"SUMIFS(E748:E847,K748:K847,\">=90\")","v":0}]
[null," Wall coverings",null,null,null,null,"Mandatory requirements met?",{"$f":"IF(G953=\"\",\"\",IF(G953=1,\"Yes\",\"No\"))","v":""},null,null,"Optional points total:","NA"]
[null," Mandatory",null,null,null,null,"Option pursued:",null,null,null,null,"NA"]
[null,null,"Product\nName","Manufacturer \nName","Estimated Product Cost",null,"Mandatory\nNo additional points"]
[null,null,null,null,null,null,"Contains vinyl?\n(Yes / No)\n100% compliance NO vinyl"]
[null,1]
[null,{"$f":"B853+1","v":2}]
[null,{"$f":"B854+1","v":3}]
[null,{"$f":"B855+1","v":4}]
[null,5]
[null,{"$f":"B857+1","v":6}]
[null,7]
[null,8]
[null,9]
[null,10]
[null,11]
[null,12]
[null,13]
[null,14]
[null,15]
[null,16]
[null,17]
[null,18]
[null,19]
[null,20]
[null,21]
[null,22]
[null,23]
[null,24]
[null,25]
[null,26]
[null,27]
[null,28]
[null,29]
[null,30]
[null,31]
[null,32]
[null,33]
[null,34]
[null,35]
[null,36]
[null,37]
[null,38]
[null,39]
[null,40]
[null,41]
[null,42]
[null,43]
[null,44]
[null,45]
[null,46]
[null,47]
[null,48]
[null,49]
[null,50]
[null,51]
[null,52]
[null,53]
[null,54]
[null,55]
[null,56]
[null,57]
[null,58]
[null,59]
[null,60]
[null,61]
[null,62]
[null,63]
[null,64]
[null,65]
[null,66]
[null,67]
[null,{"$f":"B919+1","v":68}]
[null,69]
[null,70]
[null,71]
[null,72]
[null,73]
[null,74]
[null,75]
[null,76]
[null,77]
[null,78]
[null,79]
[null,80]
[null,81]
[null,82]
[null,83]
[null,84]
[null,85]
[null,86]
[null,87]
[null,88]
[null,89]
[null,90]
[null,91]
[null,92]
[null,93]
[null,94]
[null,95]
[null,96]
[null,97]
[null,98]
[null,{"$f":"B950+1","v":99}]
[null,{"$f":"B951+1","v":100}]
[null,"Compliance Summary:",null,null,{"$f":"SUM(E853:E952)","v":0},null,{"$f":"IF(COUNTIF(G853:G952,\"?*\")=0,\"\",IF(OR(H953=\"\",E953=\"\",E953=0),\"\",H953/E953))","v":""},{"$f":"SUMIFS(E853:E952,G853:G952,\"<>Yes\",G853:G952,\"<>\")","v":0}]
[null," Wood, composite",null,null,null,null,"Mandatory requirements met?",{"$f":"IF(H1058=\"\",\"\",IF(H1058=1,\"Yes\",\"No\"))","v":""},null,null,"Optional points total:    ",{"$f":"IF(COUNT(H1058:J1058)=0,\"\",\nIF(AND(\n    H1058=1,\n    OR(I1058=1,AND(ISNUMBER(J1058),J1058>=0.5))\n),\n2,\n0))","v":""}]
[null," Mandatory",null,null,null,null,"Option pursued:   ",null,null,null,null,"NA"]
[null,null,"Product\nName","Manufacturer \nName","Estimated Product Cost",null,"Mandatory\nNo additional points",null,"Optional\nMeet mandatory + either requirement for 2 points."]
[null,null,null,null,null,null,"Material Type","Less than/equal to formaldehyde emissions standard\n(Choose standard)\n100% compliance","Contains No Added Formaldehyde (NAF)?\n(Yes / No)\n100% compliance","FSC Certified?\n(Yes / No)\n≥ 50% compliance"]
[null,1]
[null,{"$f":"B958+1","v":2}]
[null,{"$f":"B959+1","v":3}]
[null,{"$f":"B960+1","v":4}]
[null,5]
[null,{"$f":"B962+1","v":6}]
[null,7]
[null,8]
[null,9]
[null,10]
[null,11]
[null,12]
[null,13]
[null,14]
[null,15]
[null,16]
[null,17]
[null,18]
[null,19]
[null,20]
[null,21]
[null,22]
[null,23]
[null,24]
[null,25]
[null,26]
[null,27]
[null,28]
[null,29]
[null,30]
[null,31]
[null,32]
[null,33]
[null,34]
[null,35]
[null,36]
[null,37]
[null,38]
[null,39]
[null,40]
[null,41]
[null,42]
[null,43]
[null,44]
[null,45]
[null,46]
[null,47]
[null,48]
[null,49]
[null,50]
[null,51]
[null,52]
[null,53]
[null,54]
[null,55]
[null,56]
[null,57]
[null,58]
[null,59]
[null,60]
[null,61]
[null,62]
[null,63]
[null,64]
[null,65]
[null,66]
[null,67]
[null,{"$f":"B1024+1","v":68}]
[null,69]
[null,70]
[null,71]
[null,72]
[null,73]
[null,74]
[null,75]
[null,76]
[null,77]
[null,78]
[null,79]
[null,80]
[null,81]
[null,82]
[null,83]
[null,84]
[null,85]
[null,86]
[null,87]
[null,88]
[null,89]
[null,90]
[null,91]
[null,92]
[null,93]
[null,94]
[null,95]
[null,96]
[null,97]
[null,98]
[null,{"$f":"B1055+1","v":99}]
[null,{"$f":"B1056+1","v":100}]
[null,"Compliance Summary:",null,null,{"$f":"SUM(E958:E1057)","v":0},null,null,{"$f":"IF(COUNTIF(H958:H1057,\"?*\")=0,\"\",IF(OR(K1058=\"\",E1058=\"\",E1058=0),\"\",K1058/E1058))","v":""},{"$f":"IF(COUNTIF(I958:I1057,\"?*\")=0,\"\",IF(OR(L1058=\"\",E1058=\"\",E1058=0),\"\",L1058/E1058))","v":""},{"$f":"IF(COUNTIF(J958:J1057,\"?*\")=0,\"\",IF(OR(M1058=\"\",E1058=\"\",E1058=0),\"\",M1058/E1058))","v":""},{"$f":"SUMIFS(E958:E1057,H958:H1057,\"<>No: Emissions for product exceed thresholds.\",H958:H1057,\"<>\")","v":0},{"$f":"SUMIFS(E958:E1057,I958:I1057,\"<>No\",I958:I1057,\"<>\")","v":0},{"$f":"SUMIFS(E958:E1057,J958:J1057,\"<>No\",J958:J1057,\"<>\")","v":0}]
[null," Wood, noncomposite",null,null,null,null,null,null,null,null,"  Optional points total:   ",{"$f":"IF(G1163=\"\",\"\",\nIF(G1163>=50%,2,0))","v":""}]
[null," Optional",null,null,null,null,"Option pursued:    ",null,null,null,null,"NA"]
[null,null,"Product\nName","Manufacturer \nName","Estimated Product Cost",null,"Optional\n2 points"]
[null,null,null,null,null,null,"FSC Certified?\n≥ 50% compliance"]
[null,1]
[null,{"$f":"B1063+1","v":2}]
[null,{"$f":"B1064+1","v":3}]
[null,{"$f":"B1065+1","v":4}]
[null,5]
[null,{"$f":"B1067+1","v":6}]
[null,7]
[null,8]
[null,9]
[null,10]
[null,11]
[null,12]
[null,13]
[null,14]
[null,15]
[null,16]
[null,17]
[null,18]
[null,19]
[null,20]
[null,21]
[null,22]
[null,23]
[null,24]
[null,25]
[null,26]
[null,27]
[null,28]
[null,29]
[null,30]
[null,31]
[null,32]
[null,33]
[null,34]
[null,35]
[null,36]
[null,37]
[null,38]
[null,39]
[null,40]
[null,41]
[null,42]
[null,43]
[null,44]
[null,45]
[null,46]
[null,47]
[null,48]
[null,49]
[null,50]
[null,51]
[null,52]
[null,53]
[null,54]
[null,55]
[null,56]
[null,57]
[null,58]
[null,59]
[null,60]
[null,61]
[null,62]
[null,63]
[null,64]
[null,65]
[null,66]
[null,67]
[null,{"$f":"B1129+1","v":68}]
[null,69]
[null,70]
[null,71]
[null,72]
[null,73]
[null,74]
[null,75]
[null,76]
[null,77]
[null,78]
[null,79]
[null,80]
[null,81]
[null,82]
[null,83]
[null,84]
[null,85]
[null,86]
[null,87]
[null,88]
[null,89]
[null,90]
[null,91]
[null,92]
[null,93]
[null,94]
[null,95]
[null,96]
[null,97]
[null,98]
[null,{"$f":"B1160+1","v":99}]
[null,{"$f":"B1161+1","v":100}]
[null,"Compliance Summary:",null,null,{"$f":"SUM(E1063:E1162)","v":0},null,{"$f":"IF(COUNTIF(G1063:G1162,\"?*\")=0,\"\",IF(OR(M1163=\"\",E1163=\"\",E1163=0),\"\",M1163/E1163))","v":""},null,null,null,null,null,{"$f":"SUMIFS(E1063:E1162,G1063:G1162,\"<>No\",G1063:G1162,\"<>\")","v":0}]
[null,null,null,null,null,null,"Total Optional Points Achieved:   ",null,null,null,null,{"$f":"IF(COUNT(L219,L114,L324,L429,L534,L639,L744,L954,L1059)=0,\"\",SUM(L219,L114,L324,L429,L534,L639,L744,L954,L1059))","v":""}]

{"sheet":"References","index":3,"n_rows":144,"n_cols":15,"rows_kept":144,"cut":false,"hidden":false,"merged":[[0,1,0,4],[2,1,2,2],[3,1,3,4],[65,1,65,2],[82,1,82,2],[65,3,90,4],[64,1,64,4],[5,1,5,2],[94,1,94,4],[96,1,96,2],[97,1,97,2],[98,1,98,2],[93,1,93,4],[104,1,104,2],[105,1,105,2],[106,1,106,2],[96,3,96,13],[99,1,99,2],[100,1,100,2],[101,1,101,2],[102,1,102,2],[103,1,103,2],[120,1,121,1],[122,1,123,1],[124,1,125,1],[108,3,108,14],[110,1,111,1],[112,1,113,1],[114,1,115,1],[116,1,117,1],[118,1,119,1],[108,1,108,2],[137,1,137,2],[138,1,138,2],[139,1,139,2],[128,1,128,4],[129,1,129,4],[131,1,131,2],[131,3,131,13],[132,1,132,2],[132,11,132,13],[138,11,138,13],[139,11,139,13],[137,6,137,10],[135,11,135,13],[136,11,136,13],[137,11,137,13],[136,3,136,5],[140,1,140,2],[132,6,132,10],[132,3,132,5],[138,6,138,10],[139,6,139,10],[140,6,140,10],[133,1,133,2],[134,1,134,2],[134,3,134,5],[133,3,133,5],[133,6,133,10],[134,6,134,10],[135,1,135,2],[136,1,136,2],[135,6,135,10],[136,6,136,10],[137,3,137,5],[138,3,138,5],[139,3,139,5],[140,3,140,5],[133,11,133,13],[134,11,134,13],[140,11,140,13],[135,3,135,5],[143,1,143,2],[143,3,143,5],[143,6,143,10],[143,11,143,13],[141,1,141,2],[141,3,141,5],[141,6,141,10],[141,11,141,13],[142,1,142,2],[142,3,142,5],[142,6,142,10],[142,11,142,13]]}
[null,"References - Criterion 6.1 Product Category Screening"]
[null,"REQUIREMENTS"]
[null,"During the concept or schematic design phase, project teams must perform a screening exercise — a high-level review of product categories — to understand the embodied carbon and material health implications of their initial product selections. This step is intended to inform project teams’ design decisions, not to finalize product selections.\n\nTo perform the screening, complete all of the following [4 points]:\n\n• Select at least three product categories to screen for embodied carbon and at least three product categories to screen for material health from the product category lists below. Categories should align with materials most likely to be used in the project, prioritized by volume.\n• Select at least one screening resource to evaluate materials for their embodied carbon impacts and one screening resource to evaluate materials for potential health impacts.\n• Use the Green Communities Product Category Screening Template to document the screening results for the project’s initial material health and embodied carbon impacts and, if applicable, identify opportunities to avoid the worst impacts from products by shifting to those with lower embodied carbon and/or with lower risk of potential negative health impacts.\n• Share the screening results with appropriate team members, including designers, general contractor, relevant trades, and sustainability consultants.\n• Ensure team members consider the screening results when selecting products, writing specifications, and procuring products and materials."]
[null,"References - Criterion 6.4 Advanced Material Selection "]
[null,"REQUIREMENTS"]
[null,"Use products that comply with the specifications below. \n\nNotes for all product categories:\n\n• Percentages of installed quantities are by cost or volume within the product category, except where existing materials are preserved or repaired.\n• “CDPH Standard Method” refers to the Standard Method for the Testing and Evaluation of Volatile Organic Chemical Emissions from Indoor Sources using Environmental Chambers, version 1.2, from the California Department of Public Health.\n• PFAS, commonly known as “forever chemicals,” are per- and polyfluoroalkyl substances, which are common coatings on consumer products, including food containers. In construction, they are often used on textiles, window treatments, and exteriors to repel dirt and stains."]
[null,"Adhesives and sealants, wet-applied interior"]
[null,"SCAQMD 1113 Reference"]
[null,"Rule 1168 SCAQMD Volatile Organic Compound (VOC) Limits as of February 5, 2016, Adhesive & Sealants "]
[]
[null,"MANDATORY","OPTIONAL"]
[null,"For adhesives and sealants applied inside the air barrier:\n• VOC content is less than or equal to the thresholds provided by the most recent version of South Coast Air Quality Management District (SCAQMD) 1168 available at the time of product specification.\n• VOC emissions of 80% by volume are verified as meeting the CDPH Standard Method for the school or residential scenario.","None for this category."]
[]
[null,"Cladding, exterior wall"]
[]
[null,"MANDATORY","OPTIONAL"]
[null,"None for this category.","If not preserved or repaired existing cladding, 100% of exterior wall cladding is expanded cork board, natural wood (including heat treated), bamboo, engineered wood, thin brick, natural stone, ceramic, terra-cotta, lime plaster, or fiber cement. [2 points]"]
[]
[null,"Concrete"]
[]
[null,"MANDATORY","OPTIONAL"]
[null,"None for this category.","Use the most recent Carbon Leadership Forum North American Material Baselines report or current, regional industry-average environmental product declarations (EPDs) to determine typical impact values per concrete strength class in the property’s location. Provide a product-specific EPD for at least 90% of newly installed concrete, demonstrating global warming potential (GWP) that is either:\n• 20% lower than the regional average [5 points]\n• No higher than the regional average [2 points]"]
[]
[null,"Flooring"]
[]
[null,"MANDATORY","OPTIONAL"]
[null,"Implement Option 1: Best-in-class flooring standards OR Option 2: Minimum flooring standards. Points are available for selecting Option 1 or for going beyond the minimum standards in Option 2.\n\nOption 1: Best-in-class flooring standards\nA minimum of 90% of all flooring is a combination of 1) repaired existing floor, 2) linoleum, 3) solid wood flooring that is FSC-certified or salvaged wood, 4) pre-finished engineered wood or bamboo, 5) pre-finished cork (excluding rubber/cork composite), 6) no floorcovering (e.g., concrete or CLT structural slab without a finish or sealer) or 7) ceramic / porcelain tile  (no added lead). [4 points]\n\nOption 2: Minimum flooring standards\n• All flooring products are either an inherently nonemitting source of VOCs (such as unfinished stone or porcelain tile) or have VOC emissions verified as meeting the requirements of the CDPH Standard Method for school or residential scenarios.\n• No carpet may be installed in building entryways, laundry rooms, bathrooms, kitchens/ kitchenettes, or utility rooms. Walk-off mats manufactured especially for that purpose are acceptable at entryways.\n• None of the below may be installed:\n          - Flexible PVC with phthalates (in either vinyl flooring or carpet backings)\n          - Rubber or rubber–cork flooring made with tire-derived crumb rubber\n          - Carpet with intentionally added PFAS stain-repellant treatments\n• Fluid-applied finish floors may be installed only in spaces that are not regularly occupied, such as mechanical rooms. ","Project teams implementing Option 2: Minimum flooring standards may also select any, all, or none of the below for points:\n• All flooring adhesives, coating, and sealants, whether pre-applied or site-applied, do not contain PFAS. Site-applied flooring adhesives, coatings, and sealants meet CDPH Standard Method emission requirements and do not contain epoxy or polyurethane. [1 point]\n• No carpet is installed anywhere in the project. [1 point]\n• No vinyl flooring is installed anywhere in the project. [1 point]"]
[null,null,"Paint, interior"]
[null,"Gypsum wallboard"]
[]
[null,"MANDATORY","OPTIONAL"]
[null,"None for this category.","At least 60% of all newly installed interior gypsum wallboard is lightweight gypsum board  AND meets CDPH Standard Method emission requirements. [2 points]"]
[]
[null,"Insulation"]
[]
[null,"MANDATORY","OPTIONAL"]
[null,"Implement Option 1: Best-in-class insulation standards, Option 2: Intermediate insulation  standards, or Option 3: Minimum insulation standards. Points are available for selecting Option 1 or Option 2.\n\nOption 1: Best-in-class insulation standards\nAt least 75% of all newly installed above-grade insulation (exterior and interior) is bio-based, such  as wood fiber, hemp fiber, cellulose or cotton, hempcrete, or straw. All other insulation meets the  minimum requirements in Option 3. [5 points]\n\nOption 2: Intermediate insulation standards\nAt least 90% of all newly installed above-grade insulation (exterior and interior) is bio-based  (acceptable materials are listed in Option 1), fiberglass batts, formaldehyde-free mineral wool  batts, and/or unfaced fiberglass or mineral wool boards. [3 points]\n\nOption 3: Minimum insulation standards\n• Mineral wool batt insulation, if used, is formaldehyde free.\n• Two-part spray polyurethane foam may be used in limited scope only to establish a sealed air barrier if no other viable material options are available.\n• Foam insulation, if used, has blowing agents with low global warming potential (GWP150).","None for this category."]
[]
[null,"Paint and other coatings, wet-applied interior"]
[]
[null,"MANDATORY","OPTIONAL"]
[null,"Implement Option 1: Best-in-class paint and coating standards, Option 2: Intermediate paint and coating standards, or Option 3: Minimum paint and coating standards below. Points are available for selecting Option 1 or Option 2.\n\nOption 1: Best-in-class coating standards\nAt least 50% of all paints are mineral paint, such as lime or mineral silicate, and 90% of the  remaining portion of paints, coatings, and primers meet the requirements of Option 3: Minimum coating standards. [4 points]\n\nOption 2: Intermediate coating standards\nAt least 90% of interior paints, coatings, and primers are free of PFAS and alkylphenol  ethoxylates (APEs) and meet the requirements of Option 3: Minimum paint and coating standards.  Mineral paints are exempt from documentation. [2 points]\n\nOption 3: Minimum coating standards\nFor interior paints, coatings, and primers:\n• VOC content is less than or equal to the thresholds provided by the most recent version of  SCAQMD 1113 available at time of product specification.\n• VOC emissions of 90% by volume are verified as compliant with CDPH Standard Method for  school or residential exposure scenarios.","None for this category."]
[]
[null,"Steel"]
[]
[null,"MANDATORY","OPTIONAL"]
[null,"None for this category.","Implement either Option 1 or Option 2 below.\n\nOption 1: Best-in-class steel standards\nSpecify 100% steel produced by electric-arc furnace, and/or with at least 90% recycled content, instead of by blast furnace or basic oxygen furnace. [4 points]\n\nOption 2: Intermediate steel standards\nFor 75% of steel deck and cold-formed steel framing AND For 75% of structural steel, specify products with global warming potential (GWP) at least 20% lower than baseline as indicated in the most recent Carbon Leadership Forum North American Material Baselines report. [3 points]"]
[]
[null,"Wall coverings"]
[]
[null,"MANDATORY","OPTIONAL"]
[null,"Do not install wall coverings that contain vinyl.","None for this category."]
[]
[null,"Wood, composite"]
[]
[null,"MANDATORY","OPTIONAL"]
[null,"Formaldehyde emissions must be less than or equal to the thresholds provided by California Air Resources Board (CARB) Phase II Composite Wood Products Airborne Toxic Control Measure and/or Toxic Substances Control Act (TSCA) Title IV for all hardwood plywood, particleboard, medium-density fiberboard (MDF), and these materials within other products (e.g., cabinets and doors).","In addition, teams may also select either, both, or none of the below. \n• All composite wood products are certified to have no added formaldehyde (NAF). [2 points]\n• At least 50% of composite wood installed as part of the project is certified to the Forest Stewardship Council (FSC) standard. [2 points]"]
[]
[null,"Wood, noncomposite"]
[]
[null,"MANDATORY","OPTIONAL"]
[null,"None for this category.","At least 50% of noncomposite wood installed as part of the project is certified to the Forest  Stewardship Council standard. [2 points]"]
[]
[null,"Wet-applied products, VOC limits"]
[]
[null,"Table 6.4a  |  Selected Limits for Wet-Applied Adhesives and Sealants: SQACMD 1168"]
[null,"As of October 9, 2025"]
[null,"Product Type","Maximum VOC Limit (g/l)"]
[null,"Carpet pad adhesives ",50]
[null,"Wood flooring adhesives ",120]
[null,"Rubber floor adhesives ",60]
[null,"Subfloor adhesives ",50]
[null,"Vinyl composition tile and asphalt tile adhesives ",50]
[null,"Drywall and panel adhesives",50]
[null,"Cove base adhesives",50]
[null,"Multipurpose construction adhesives",70]
[null,"Structural glazing adhesives",100]
[null,"Structural wood member adhesive",140]
[null,"Architectural sealants: clear, paintable, and immediately water-resistant",250]
[null,"Architectural sealant primers: nonporous",250]
[null,"Architectural sealant primers: porous",775]
[]
[null,"Table 6.4b  |  Selected Limits for Wet-Applied Paints and Other Coatings: SQACMD 1113"]
[null,"As of October 9, 2025"]
[null,"Product Type","Maximum VOC Limit (g/l)"]
[null,"Primers, sealers, and undercoatings",100]
[null,"Coatings, flats and non-flats, and floor",50]
[null,"Rust-preventive coatings",100]
[null,"Wood coatings",275]
[null,"Stains, interior",250]
[null,"Tub and tile refinishing coatings",420]
[]
[null,"Concrete, CLF North American Material Baselines"]
[null,"CLF Reference: "]
[null," 2025 CLF North American Material Baselines"]
[]
[null,"USA ready-mixed concrete baseline values",null,"GWP values in kg CO2e/m3, A1–A3. "]
[null,"Product region",null,"3000 psi ","4000 psi ","5000 psi ","6000 psi","8000 psi","9000 psi","10,000 psi","12,000 psi","3000 psi LW ","4000 psi LW ","5000 psi LW "]
[null,"Pacific Southwest",null,257,279,323,378,456,437,471,"--",500,546,594]
[null,"Pacific Northwest",null,235,261,316,386,487,378,470,"--",518,575,632]
[null,"Rocky Mountains",null,232,255,301,358,440,"--",387,"--",484,532,580]
[null,"South Central",null,226,245,286,336,409,"--","--","--",468,510,555]
[null,"North Central",null,241,264,312,372,460,"--","--","--",487,537,591]
[null,"Southeastern",null,247,268,309,360,435,534,609,593,478,521,562]
[null,"Great Lakes",null,232,255,303,363,452,"--","--","--",499,551,603]
[null,"Eastern",null,240,264,314,378,472,410,429,353,517,573,628]
[null,"National",null,240,262,308,365,446,"--","--","--",492,540,588]
[]
[null,"USA Industry EPD counts and GWP summary statistics",null,"GWP values in kg CO2e/m3, A1–A3. "]
[null,"Product region","Industry EPDs","2500 psi ","3000 psi ","4000 psi ","5000 psi ","6000 psi","8000 psi","9000 psi","10,000 psi","12,000 psi","3000 psi LW ","4000 psi LW ","5000 psi LW "]
[null,"Pacific Southwest","EPD Count",1,1,1,1,1,1,0,0,0,1,1,1]
[null,null,"GWP Mean",257,279,323,378,401,456,"--","--","--",500,546,594]
[null,"Pacific Northwest","EPD Count",1,1,1,1,1,1,0,0,0,1,1,1]
[null,null,"GWP Mean",235,261,316,386,408,487,"--","--","--",518,575,632]
[null,"Rocky Mountains","EPD Count",1,1,1,1,1,1,0,0,"--",1,1,1]
[null,null,"GWP Mean",232,255,301,358,379,440,"--","--","--",484,532,580]
[null,"South Central","EPD Count",1,1,1,1,1,1,0,0,0,1,1,1]
[null,null,"GWP Mean",226,245,286,336,356,409,"--","--","--",468,510,555]
[null,"North Central","EPD Count",1,1,1,1,1,1,"--",0,0,1,1,1]
[null,null,"GWP Mean",241,264,312,372,394,460,"--","--","--",487,537,591]
[null,"Southeastern","EPD Count",1,1,1,1,1,1,0,0,0,1,1,1]
[null,null,"GWP Mean",247,268,309,360,382,435,"--","--","--",478,521,562]
[null,"Great Lakes\nMidwest","EPD Count",1,1,1,1,1,1,"--",0,0,1,1,1]
[null,null,"GWP Mean",232,255,303,363,383,452,"--","--","--",499,551,603]
[null,"Eastern","EPD Count",1,1,1,1,1,1,0,0,0,1,1,1]
[null,null,"GWP Mean",240,264,314,378,299,472,"--","--","--",517,573,628]
[]
[null,"Steel, CLF North American Material Baselines"]
[null,"CLF Reference: "]
[null," 2025 CLF North American Material Baselines"]
[]
[null,"USA steel baseline values",null,"GWP values in kg CO2e/m3. "]
[null,"Product type",null,"Baseline GWP (kg CO2e) ",null,null,"Data source and notes ",null,null,null,null,"Baseline method;\nRepresentativeness assessment approach* "]
[null,"Rebar, unfabricated ",null,753,null,null,"Rebar industry-average EPD (CRSI, 2022). CLF converted from the industry EPD's fabricated result to unfabricated GWP",null,null,null,null,"Industry (single); industry data "]
[null,"Rebar, fabricated ",null,854,null,null,"Rebar industry-average EPD (CRSI, 2022) ",null,null,null,null,"Industry (single); industry data "]
[null,"Hot-rolled sections, unfabricated",null,901,null,null,"Hot-rolled structural steel sections industry-average LCA report (JBE, 2025) ",null,null,null,null,"Industry (single)"]
[null,"Hot-rolled sections, fabricated",null,1080,null,null,"Hot-rolled structural steel sections industry-average LCA report (JBE, 2025) ",null,null,null,null,"Industry (single)"]
[null,"Steel plate, unfabricated",null,1480,null,null,"Steel plate industry-average EPD (AISC, 2021b). CLF converted from the industry EPD's fabricated result to unfabricated GWP.",null,null,null,null,"Industry (single)"]
[null,"Steel plate, fabricated",null,1730,null,null,"Steel plate industry-average EPD (STI, 2021)",null,null,null,null,"Industry (single)"]
[null,"HSS, unfabricated",null,1710,null,null,"HSS industry-average EPD (STI, 2021)",null,null,null,null,"Industry (single)"]
[null,"HSS, fabricated",null,1990,null,null,"Fabricated HSS industry-average EPD (AISC, 2021a) ",null,null,null,null,"Industry (single)"]
[null,"Cold-formed steel framing",null,2440,null,null,"Cold-formed steel framing industry-average EPD (SFIA, 2021)",null,null,null,null,"Industry (single)"]
[null,"Steel deck",null,2330,null,null,"Steel deck industry-average EPD (SDI, 2022) ",null,null,null,null,"Industry (single); industry data "]
[null,"Open-web steel joist ",null,1430,null,null,"OWSJ industry-average EPD (SJI, 2022) ",null,null,null,null,"Industry (single)"]

{"sheet":"6.1 - EXAMPLE","index":4,"n_rows":22,"n_cols":8,"rows_kept":22,"cut":false,"hidden":false,"merged":[[2,2,2,3],[5,1,6,1],[5,2,5,5],[5,6,5,7],[17,1,18,1],[17,2,17,5],[17,6,17,7]]}
[null,"EXAMPLE Completed 6.1 Template"]
[]
[null,"Project Name:",{"$f":"IF('Instructions & Summary'!C6=\"\",\"\",'Instructions & Summary'!C6)","v":""},null,"Submission Date:   ",{"$f":"IF('Instructions & Summary'!E6=\"\",\"\",'Instructions & Summary'!E6)","v":""}]
[]
[null,"6.1 Embodied Carbon Screening"]
[null,"\n\n\nSpec Reference\n(Optional)","Pre-Build",null,null,null,"Post-Build"]
[null,null,"Product Category\n(Choose one)","Screening Resource\n(Choose one)","Were results shared with appropriate team members? (Yes / No)","Screening Results Reflection \n(Highest impact products, opportunities, challenges)","Did screening (6.1) inform product selection (6.4)? (Yes / No)","Final Reflection\n(Optional)"]
[null,"09 65 00","Flooring","Embodied Carbon in Construction Calculator (EC3)","Yes","Highest impact products: Luxury vinyl plank\nOpportunities: Sub vinyl for linoleum\nChallenges: $$$","Yes","LVP was replaced with linoleum, leading to 80% reduction in GWP (LVP = 62 CO₂e/m²; Linoleum = 12 CO₂e/m²)"]
[null,"03 05 00\n03 30 00 ","Concrete","Carbon Designer 3D (CD3D) by One Click LCA","Yes","Highest impact products: Current Portland cement mix design\nOpportunities: Subbing current mix design for one that is less than industry average. Portland-limestone mix is possible alternative\nChallenges: Category is one of the top contributors to total GWP on the project.","Yes","Adjusting concrete mix design by replacing clinker with limestone led to 9% reduction in embodied carbon. Carbon intensity score for entire project shifted from a C to B from pre-build to post-build."]
[null,"09 29 00","Gypsum","Common Materials Framework (CMF) climate health impact area","Yes","Current gypsum board can be subbed for lightweight gypsum board.","Yes","Sheetrock brand gypsum was used due to 21% reduction in GWP."]
[]
[]
[]
[]
[]
[]
[null,"6.1 Material Health Screening"]
[null,"\n\n\nSpec Reference\n(Optional)","Pre-Build",null,null,null,"Post-Build"]
[null,null,"Product Category\n(Choose one)","Screening Resource\n(Choose one)","Were results shared with appropriate team members? (Yes / No)","Screening Results Reflection \n(Highest impact products, opportunities, challenges)","Did screening (6.1) inform product selection (6.4)? (Yes / No)","Final Reflection\n(Optional)"]
[null,"09 91 23","Paint, interior","Habitable’s Informed product guidance and benchmarking tools","Yes","Goal = all paints should aim to be zero-VOC.","Yes","All interior paints onsite are now zero-VOC."]
[null,"09 65 00","Flooring","Habitable’s Informed product guidance and benchmarking tools","Yes","Project had previously considered the use of carpet tile with a vinyl backing on project. Reviewing product guidance has led team to consider no vinyl backing/removing carpet all together.\nHighest impact product: Tarkett carpet tile","Yes","All carpet has been removed from the project."]
[null,"07 21 00","Paint, interior","Habitable’s Informed product guidance and benchmarking tools","Yes","- Project considering use of insulation that is not bio-based\n- Project considering several brands that are not compliant with formaldehyde standards.\n- Architect to consider altering choices to meet standards and to consider bio-based options.","Yes","Though bio-based insulation was not used on the project, all insulation now meets formaldehyde standards."]

{"sheet":"6.4 - EXAMPLE","index":5,"n_rows":1161,"n_cols":17,"rows_kept":1161,"cut":false,"hidden":false,"merged":[[2,1,2,2],[2,3,2,4],[4,1,4,4],[4,6,4,11],[5,0,1055,0],[5,1,5,4],[5,5,1055,5],[6,1,6,4],[6,6,6,10],[7,1,8,1],[7,2,8,2],[7,3,8,3],[112,1,113,1],[112,2,113,2],[112,3,113,3],[112,4,113,4],[112,7,137,11],[214,1,214,3],[7,4,8,4],[7,6,7,8],[109,1,109,3],[110,1,110,4],[111,1,111,4],[111,6,111,10],[215,1,215,4],[216,1,216,4],[216,6,216,10],[217,1,218,1],[217,2,218,2],[217,3,218,3],[217,4,218,4],[217,6,217,7],[319,1,319,3],[320,1,320,4],[321,1,321,4],[321,6,321,10],[322,1,323,1],[322,2,323,2],[322,3,323,3],[322,4,323,4],[322,6,322,7],[322,8,322,10],[424,1,424,3],[426,1,426,4],[426,6,426,10],[427,1,428,1],[427,2,428,2],[427,3,428,3],[427,4,428,4],[427,6,427,7],[427,8,433,11],[529,1,529,3],[530,1,530,4],[531,1,531,4],[531,6,531,10],[532,1,533,1],[532,2,533,2],[532,3,533,3],[532,4,533,4],[532,8,532,9],[532,10,538,11],[634,1,634,3],[635,1,635,4],[636,1,636,4],[636,6,636,10],[637,1,638,1],[637,2,638,2],[637,3,638,3],[637,4,638,4],[637,6,637,8],[637,10,637,11],[845,1,845,4],[846,1,846,4],[846,6,846,10],[847,1,848,1],[847,2,848,2],[847,3,848,3],[847,4,848,4],[847,7,853,11],[739,1,739,3],[741,1,741,4],[741,6,741,10],[742,1,743,1],[742,2,743,2],[742,3,743,3],[742,4,743,4],[742,6,742,8],[742,9,742,10],[742,11,748,11],[844,1,844,3],[1160,1,1160,4],[1160,6,1160,10],[1054,1,1054,3],[1056,1,1056,4],[1056,6,1056,10],[1057,1,1058,1],[1057,2,1058,2],[1057,3,1058,3],[1057,4,1058,4],[1057,7,1159,11],[1159,1,1159,3],[949,1,949,3],[950,1,950,4],[951,1,951,4],[951,6,951,10],[952,1,953,1],[952,2,953,2],[952,3,953,3],[952,4,953,4],[952,6,952,7],[952,8,952,9]]}
[null,"EXAMPLE Completed 6.4 Template"]
[]
[null,"Project Name:",null,{"$f":"IF('Instructions & Summary'!C6=\"\",\"\",'Instructions & Summary'!C6)","v":""},null,null,"Submission Date:",{"$f":"IF('Instructions & Summary'!E6=\"\",\"\",'Instructions & Summary'!E6)","v":""}]
[]
[null," Product Information",null,null,null,null," 6.4 Advanced Material Selection"]
[null," Adhesives and sealants, wet-applied interior",null,null,null,null,"Mandatory requirements met?",{"$f":"IF(OR(H110=\"\",I110=\"\"),\"\",IF(AND(H110=100%,I110>=80%),\"Yes\",\"No\"))","v":"Yes"},null,null,"Optional points total:","NA"]
[null," Mandatory - All adhesives and sealants applied inside the air barrier.\n  *See Table 6.4a in 'References' tab for VOC Content thresholds.",null,null,null,null,"Option pursued:",null,null,null,null,"NA"]
[null,null,"Product\nName","Manufacturer \nName","Estimated Product Cost\n(Optional for this category)",null,"Mandatory\nNo additional points"]
[null,null,null,null,null,null,"Estimated Product Volume\n (Liters)","VOC Content \n(g/L)\n100% compliance\nIf not met, type 'NA' in cell.","Approved VOC Emissions Certification or Standard\n≥ 80% compliance\nIf no certification/standard is available, type 'NA' in cell."]
[null,1,"AC 20+ Silicone","Pecora",6500,null,250,98,"Greenguard Gold"]
[null,{"$f":"B10+1","v":2},"3000 Carpet Tile Adhesive","ShawContract",4000,null,60,8,"Floor Score"]
[null,{"$f":"B11+1","v":3},"Fire Barrier Sealant CP 25WB+","3M",500,null,18,6,"Intertek Clean Air Gold"]
[null,{"$f":"B12+1","v":4},"Fire Barrier 1003SL","3M",500,null,18,53,"Intertek Clean Air Gold",null,null,null,null,null,null,null,"`"]
[null,5,"960 Wallbase Adhesive","Tarkett",2000,null,450,0,"Floor Score",null,null,null,null,null,"`"]
[null,{"$f":"B14+1","v":6},"Mapelastic AquaDefense","Mapei",3000,null,20,100,"SCS Indoor Advanatage Gold"]
[null,7]
[null,8]
[null,9]
[null,10]
[null,11]
[null,12]
[null,13]
[null,14]
[null,15]
[null,16]
[null,17]
[null,18]
[null,19]
[null,20]
[null,21]
[null,22]
[null,23]
[null,24]
[null,25]
[null,26]
[null,27]
[null,28]
[null,29]
[null,30]
[null,31]
[null,32]
[null,33]
[null,34]
[null,35]
[null,36]
[null,37]
[null,38]
[null,39]
[null,40]
[null,41]
[null,42]
[null,43]
[null,44]
[null,45]
[null,46]
[null,47]
[null,48]
[null,49]
[null,50]
[null,51]
[null,52]
[null,53]
[null,54]
[null,55]
[null,56]
[null,57]
[null,58]
[null,59]
[null,60]
[null,61]
[null,62]
[null,63]
[null,64]
[null,65]
[null,66]
[null,67]
[null,{"$f":"B76+1","v":68}]
[null,69]
[null,70]
[null,71]
[null,72]
[null,73]
[null,74]
[null,75]
[null,76]
[null,77]
[null,78]
[null,79]
[null,80]
[null,81]
[null,82]
[null,83]
[null,84]
[null,85]
[null,86]
[null,87]
[null,88]
[null,89]
[null,90]
[null,91]
[null,92]
[null,93]
[null,94]
[null,95]
[null,96]
[null,97]
[null,98]
[null,{"$f":"B107+1","v":99}]
[null,{"$f":"B108+1","v":100}]
[null,"Compliance Summary:",null,null,{"$f":"SUM(E10:E109)","v":16500},null,{"$f":"SUMPRODUCT(IFERROR(--G10:G109,0))","v":816},{"$f":"IFERROR((COUNTA(H10:H109)-COUNTIF(H10:H109,\"NA\"))/COUNTA(H10:H109),\"\")","v":1},{"$f":"IFERROR(\nSUMPRODUCT(\n--(I10:I109<>\"\"),\n--(I10:I109<>\"NA\"),\nIFERROR(VALUE(G10:G109),0)\n)\n/SUMPRODUCT(IFERROR(VALUE(G10:G109),0)),\n\"\")","v":1}]
[null," Cladding, exterior wall",null,null,null,null,null,null,null,null,"  Optional points total:    ",{"$f":"IF(G215=\"\",\"\",\nIF(G215=100%,2,0))","v":2}]
[null," Optional",null,null,null,null,"Option pursued:    ",null,null,null,null,"NA"]
[null,null,"Product\nName","Manufacturer \nName","Estimated Product Cost",null,"Optional\n2 points"]
[null,null,null,null,null,null,"Compliant Cladding Material\n(Choose types)\n100% compliance"]
[null,1,"Tectiva","Equitone",80000,null,"Fiber cement"]
[null,{"$f":"B115+1","v":2},"Linea","Equitone",60000,null,"Fiber cement"]
[null,{"$f":"B116+1","v":3},"Sigma HCI.22","ECO Cladding",40000,null,"Terra-cotta"]
[null,{"$f":"B117+1","v":4}]
[null,5]
[null,{"$f":"B119+1","v":6}]
[null,7]
[null,8]
[null,9]
[null,10]
[null,11]
[null,12]
[null,13]
[null,14]
[null,15]
[null,16]
[null,17]
[null,18]
[null,19]
[null,20]
[null,21]
[null,22]
[null,23]
[null,24]
[null,25]
[null,26]
[null,27]
[null,28]
[null,29]
[null,30]
[null,31]
[null,32]
[null,33]
[null,34]
[null,35]
[null,36]
[null,37]
[null,38]
[null,39]
[null,40]
[null,41]
[null,42]
[null,43]
[null,44]
[null,45]
[null,46]
[null,47]
[null,48]
[null,49]
[null,50]
[null,51]
[null,52]
[null,53]
[null,54]
[null,55]
[null,56]
[null,57]
[null,58]
[null,59]
[null,60]
[null,61]
[null,62]
[null,63]
[null,64]
[null,65]
[null,66]
[null,67]
[null,{"$f":"B181+1","v":68}]
[null,69]
[null,70]
[null,71]
[null,72]
[null,73]
[null,74]
[null,75]
[null,76]
[null,77]
[null,78]
[null,79]
[null,80]
[null,81]
[null,82]
[null,83]
[null,84]
[null,85]
[null,86]
[null,87]
[null,88]
[null,89]
[null,90]
[null,91]
[null,92]
[null,93]
[null,94]
[null,95]
[null,96]
[null,97]
[null,98]
[null,{"$f":"B212+1","v":99}]
[null,{"$f":"B213+1","v":100}]
[null,"Compliance Summary:",null,null,{"$f":"SUM(E115:E214)","v":180000},null,{"$f":"IF(COUNTIF(G115:G214,\"?*\")=0,\"\",IF(OR(H215=\"\",E215=\"\",E215=0),\"\",H215/E215))","v":1},{"$f":"SUMIFS(E115:E214,G115:G214,\"<>Not a compliant cladding material\",G115:G214,\"<>\")","v":180000}]
[null," Concrete",null,null,null,null,null,null,null,null,"  Optional points total:",{"$f":"IF(OR(G320=\"\",I320=\"\",J320=\"\"),\"\",\nIF(AND(G320>=90%,I320>=90%),5,\nIF(AND(G320>=90%,J320>=90%),2,0)))","v":5}]
[null," Optional - Meet requirements and earn either 2 or 5 points\n  *See CLF Baseline in 'References' tab OR industry-average EPDs",null,null,null,null,"Option pursued:",null,null,null,null,"NA"]
[null,null,"Product\nName","Manufacturer \nName","Estimated Product Cost",null,"Required for Optional Points\nProvide EPD & GWP",null,"Optional\n5 points","Optional\n2 points","`"]
[null,null,null,null,null,null,"Product Specific EPD?\n(Yes / No)\n≥ 90% compliance","Global Warming Potential \n(kgCO2e/m2)","Is GWP at least 20% lower than regional average*?\n(Yes / No)\n≥ 90% compliance","Is GWP at or below regional average*?\n(Yes / No)\n≥ 90% compliance"]
[null,1,"Concrete mix 4000 PSI","Titan",45000,null,"Yes",184,"Yes","Yes"]
[null,{"$f":"B220+1","v":2},"Concrete mix 5000 PSI","Titan",55000,null,"Yes",224,"Yes","Yes"]
[null,{"$f":"B221+1","v":3},"Concrete mix 6000 PSI","Titan",20000,null,"Yes",250,"Yes","Yes"]
[null,{"$f":"B222+1","v":4},"Concrete mix 8000 PSI","Titan",2000,null,"Yes",360,"Yes","Yes"]
[null,5]
[null,{"$f":"B224+1","v":6}]
[null,7]
[null,8]
[null,9]
[null,10]
[null,11]
[null,12]
[null,13]
[null,14]
[null,15]
[null,16]
[null,17]
[null,18]
[null,19]
[null,20]
[null,21]
[null,22]
[null,23]
[null,24]
[null,25]
[null,26]
[null,27]
[null,28]
[null,29]
[null,30]
[null,31]
[null,32]
[null,33]
[null,34]
[null,35]
[null,36]
[null,37]
[null,38]
[null,39]
[null,40]
[null,41]
[null,42]
[null,43]
[null,44]
[null,45]
[null,46]
[null,47]
[null,48]
[null,49]
[null,50]
[null,51]
[null,52]
[null,53]
[null,54]
[null,55]
[null,56]
[null,57]
[null,58]
[null,59]
[null,60]
[null,61]
[null,62]
[null,63]
[null,64]
[null,65]
[null,66]
[null,67]
[null,{"$f":"B286+1","v":68}]
[null,69]
[null,70]
[null,71]
[null,72]
[null,73]
[null,74]
[null,75]
[null,76]
[null,77]
[null,78]
[null,79]
[null,80]
[null,81]
[null,82]
[null,83]
[null,84]
[null,85]
[null,86]
[null,87]
[null,88]
[null,89]
[null,90]
[null,91]
[null,92]
[null,93]
[null,94]
[null,95]
[null,96]
[null,97]
[null,98]
[null,{"$f":"B317+1","v":99}]
[null,{"$f":"B318+1","v":100}]
[null,"Compliance Summary:",null,null,{"$f":"SUM(E220:E319)","v":122000},null,{"$f":"IF(COUNTIF(G220:G319,\"?*\")=0,\"\",IF(OR(K320=\"\",E320=\"\",E320=0),\"\",K320/E320))","v":1},null,{"$f":"IF(COUNTIF(I220:I319,\"?*\")=0,\"\",IF(OR(L320=\"\",E320=\"\",E320=0),\"\",L320/E320))","v":1},{"$f":"IF(COUNTIF(J220:J319,\"?*\")=0,\"\",IF(OR(M320=\"\",E320=\"\",E320=0),\"\",M320/E320))","v":1},{"$f":" SUMPRODUCT(E220:E319*(G220:G319<>\"\")*(G220:G319<>\"No\"))","v":122000},{"$f":" SUMPRODUCT(E220:E319*(I220:I319<>\"\")*(I220:I319<>\"No\"))","v":122000},{"$f":" SUMPRODUCT(E220:E319*(J220:J319<>\"\")*(J220:J319<>\"No\"))","v":122000}]
[null," Flooring",null,null,null,null,"Mandatory requirements met?",{"$f":"IF(AND(G425=\"\",H425=\"\",L425=\"\"),\"\",\nIF(OR(AND(G425=1,H425=1),AND(ISNUMBER(L425),L425>=0.9)),\n\"Yes\",\"No\"))","v":"Yes"},null,null,"Optional points total:",{"$f":"IF(AND(G425=\"\",H425=\"\",I425=\"\",J425=\"\",K425=\"\",L425=\"\"),\"\",\n    IF(L322=1,\n        IF(AND(ISNUMBER(L425),L425>=90%),4,0),\n        IF(L322=2,\n            IF(AND(G425=1,H425=1),\n                COUNTIF(I425:K425,1),\n                0\n            ),\n            0\n        )\n    )\n)","v":2}]
[null," Mandatory - Implement Option 1 or Option 2.",null,null,null,null,"Option pursued:\n(Choose one)",null,null,null,null,2]
[null,null,"Product\nName","Manufacturer \nName","Estimated Product Cost",null,"Mandatory for Option 2\nMeet both requirements",null,"Option 2\n1 point each (maximum 3 points)",null,null,"Option 1\n4 points"]
[null,null,null,null,null,null,"Approved VOC Emissions Certification/Standard OR Inherently Non-Emitting\n100% compliance\nIf no certification/standard available, type 'NA' in cell.","Prohibited flooring type?\n(Yes / No)\n100% compliance (not prohibited)","Free of PFAS? AND\nIf site-applied, free of epoxy/ polyurethane?\n(Yes / No)\n100% compliance","Is this a carpet?\n(Yes / No)\n100% compliance NO carpet","Contains vinyl?\n100% compliance NO vinyl","Best-in-class \nflooring \n(Choose types)\n≥ 90% compliance"]
[null,1,"Intent Tile","ShawContract",6000,null,"SCS Indoor Advantage Gold","Not a prohibited flooring type","Yes","Yes","No","Not a best-in-class flooring type",{"$f":" SUMPRODUCT(E325:E424*(G325:G424<>\"\")*(G325:G424<>\"NA\"))","v":12700}]
[null,{"$f":"B325+1","v":2},"Glazed Porcelain Tile Panels","Daltile",5200,null,"Inherently Non-Emitting","Not a prohibited flooring type","Yes","No","No","Ceramic/porcelain tile (no added lead)",{"$f":"SUMPRODUCT(E325:E424*(H325:H424=\"Not a prohibited flooring type\"))","v":12700}]
[null,{"$f":"B326+1","v":3},"Norament 992 Grano","Nora by Interface",1500,null,"Greenguard Gold","Not a prohibited flooring type","Yes","No","No","Not a best-in-class flooring type",{"$f":" SUMPRODUCT(E325:E424*(I325:I424<>\"\")*(I325:I424<>\"No\"))","v":12700}]
[null,{"$f":"B327+1","v":4},null,null,null,null,null,null,null,null,null,null,{"$f":" SUMPRODUCT(E325:E424*(J325:J424<>\"\")*(J325:J424<>\"Yes\"))","v":6700}]
[null,5,null,null,null,null,null,null,null,null,null,null,{"$f":" SUMPRODUCT(E325:E424*(K325:K424<>\"\")*(K325:K424<>\"Yes\"))","v":12700}]
[null,{"$f":"B329+1","v":6}]
[null,{"$f":"B330+1","v":7}]
[null,8]
[null,9]
[null,10]
[null,11]
[null,12]
[null,13]
[null,14]
[null,15]
[null,16]
[null,17]
[null,18]
[null,19]
[null,20]
[null,21]
[null,22]
[null,23]
[null,24]
[null,25]
[null,26]
[null,27]
[null,28]
[null,29]
[null,30]
[null,31]
[null,32]
[null,33]
[null,34]
[null,35]
[null,36]
[null,37]
[null,38]
[null,39]
[null,40]
[null,41]
[null,42]
[null,43]
[null,44]
[null,45]
[null,46]
[null,47]
[null,48]
[null,49]
[null,50]
[null,51]
[null,52]
[null,53]
[null,54]
[null,55]
[null,56]
[null,57]
[null,58]
[null,59]
[null,60]
[null,61]
[null,62]
[null,63]
[null,64]
[null,65]
[null,66]
[null,67]
[null,68]
[null,69]
[null,70]
[null,{"$f":"B394+1","v":71}]
[null,72]
[null,73]
[null,74]
[null,75]
[null,76]
[null,77]
[null,78]
[null,79]
[null,80]
[null,81]
[null,82]
[null,83]
[null,84]
[null,85]
[null,86]
[null,87]
[null,88]
[null,89]
[null,90]
[null,91]
[null,92]
[null,93]
[null,94]
[null,95]
[null,96]
[null,97]
[null,98]
[null,{"$f":"B422+1","v":99}]
[null,{"$f":"B423+1","v":100}]
[null,"Compliance Summary:",null,null,{"$f":"SUM(E325:E424)","v":12700},null,{"$f":"IF(COUNTIF(G325:G424,\"?*\")=0,\"\",IF(OR(M325=\"\",E425=\"\",E425=0),\"\",M325/E425))","v":1},{"$f":"IF(COUNTIF(H325:H424,\"?*\")=0,\"\",IF(OR(M326=\"\",E425=\"\",E425=0),\"\",M326/E425))","v":1},{"$f":"IF(COUNTIF(I325:I424,\"?*\")=0,\"\",IF(OR(M327=\"\",E425=\"\",E425=0),\"\",M327/E425))","v":1},{"$f":"IF(COUNTIF(J325:J424,\"?*\")=0,\"\",IF(OR(M328=\"\",E425=\"\",E425=0),\"\",M328/E425))","v":0.52755905511811019},{"$f":"IF(COUNTIF(K325:K424,\"?*\")=0,\"\",IF(OR(M329=\"\",E425=\"\",E425=0),\"\",M329/E425))","v":1},{"$f":"IF(COUNTIF(L325:L424,\"?*\")=0,\"\",IF(OR(M425=\"\",E425=\"\",E425=0),\"\",M425/E425))","v":0.40944881889763779},{"$f":" SUMPRODUCT(E325:E424*(L325:L424<>\"\")*(L325:L424<>\"Not a best-in-class flooring type\"))","v":5200}]
[null," Gypsum wallboard",null,null,null,null,null,null,null,null,"  Optional points total:",{"$f":"IF(OR(G530=\"\",H530=\"\"),\"\",IF(AND(G530>=60%,H530>=60%),2,0))","v":""}]
[null," Optional - Meet both requirements",null,null,null,null,"Option pursued:",null,null,null,null,"NA"]
[null,null,"Product\nName","Manufacturer \nName","Estimated Product Cost",null,"Optional\nMeet both requirements for 2 points"]
[null,null,null,null,null,null,"Approved VOC Emissions Certification or Standard\n≥ 60% compliance\nIf no certification/standard available, type 'NA' in cell.","Lightweight gypsum wallboard?\n(Yes / No)\n≥ 60% compliance"]
[null,1,"5/8\" Fire-Shield X Gold Bond Gypsum Board","Gold Bond",18000,null,"Greenguard Gold","No"]
[null,{"$f":"B430+1","v":2},"High Strength LITE® Gypsum Board","Gold Bond",17000,null,"Greenguard Gold","Yes"]
[null,{"$f":"B431+1","v":3}]
[null,{"$f":"B432+1","v":4}]
[null,5]
[null,{"$f":"B434+1","v":6}]
[null,7]
[null,8]
[null,9]
[null,10]
[null,11]
[null,12]
[null,13]
[null,14]
[null,15]
[null,16]
[null,17]
[null,18]
[null,19]
[null,20]
[null,21]
[null,22]
[null,23]
[null,24]
[null,25]
[null,26]
[null,27]
[null,28]
[null,29]
[null,30]
[null,31]
[null,32]
[null,33]
[null,34]
[null,35]
[null,36]
[null,37]
[null,38]
[null,39]
[null,40]
[null,41]
[null,42]
[null,43]
[null,44]
[null,45]
[null,46]
[null,47]
[null,48]
[null,49]
[null,50]
[null,51]
[null,52]
[null,53]
[null,54]
[null,55]
[null,56]
[null,57]
[null,58]
[null,59]
[null,60]
[null,61]
[null,62]
[null,63]
[null,64]
[null,65]
[null,66]
[null,67]
[null,{"$f":"B496+1","v":68}]
[null,69]
[null,70]
[null,71]
[null,72]
[null,73]
[null,74]
[null,75]
[null,76]
[null,77]
[null,78]
[null,79]
[null,80]
[null,81]
[null,82]
[null,83]
[null,84]
[null,85]
[null,86]
[null,87]
[null,88]
[null,89]
[null,90]
[null,91]
[null,92]
[null,93]
[null,94]
[null,95]
[null,96]
[null,97]
[null,98]
[null,{"$f":"B527+1","v":99}]
[null,{"$f":"B528+1","v":100}]
[null,"Compliance Summary:",null,null,{"$f":"SUM(E430:E529)","v":35000},null,{"$f":"IF(COUNTIF(G430:G529,\"?*\")=0,\"\",IF(OR(I530=\"\",E530=\"\",E530=0),\"\",I530/E530))","v":""},{"$f":"IF(COUNTIF(H430:H529,\"?*\")=0,\"\",IF(OR(J530=\"\",E530=\"\",E530=0),\"\",J530/E530))","v":""}]
[null," Insulation",null,null,null,null,"Mandatory requirements met?",{"$f":"IF(AND(G635=\"\",H635=\"\",I635=\"\",J635=\"\"),\"\",\nIF(OR(\nAND(G635<>\"\",G635=100%),\nAND(H635<>\"\",H635>=90%),\nAND(I635<>\"\",I635=100%,J635<>\"\",J635>=75%)\n),\"Yes\",\"No\"))","v":"Yes"},null,null,"Optional points total:",{"$f":"IF(L532=\"\",\"\",\nIF(L532=1,\n    IF(AND(ISNUMBER(I635),I635>=100%,ISNUMBER(J635),J635>=75%),5,0),\n    IF(L532=2,\n        IF(AND(ISNUMBER(H635),H635>=90%),3,0),\n        IF(L532=3,0,0)\n    )\n))","v":3}]
[null," Mandatory - Implement Option 1, 2 or 3. Points available for Option 1 or 2.\n *See 'References' tab for insulation standards.",null,null,null,null,"Option pursued:\n(Choose one)",null,null,null,null,2]
[null,null,"Product\nName","Manufacturer \nName","Estimated Product Cost",null,"Option 3\nNo additional points","Option 2\n3 points","Option 1\nMeet both requirements for 5 points"]
[null,null,null,null,null,null,"Complies with minimum insulation standards?*\n100% compliance","Complies with intermediate insulation standards?\n≥ 90% compliance","Meets Option 3 standards?\n≥ 100% compliance","Bio-based?\n≥ 75% compliance"]
[null,1,"Thermafiber SAFB Mineral wool Insulation","Owens Corning",10000,null,"Yes: Product is mineral wool batt that is formaldehyde-free.","Formaldehyde-free mineral wool batts","Yes","Not a bio-based insulation material"]
[null,{"$f":"B535+1","v":2},"Thermafiber Rainbarrier","Owens Corning",2100,null,"Yes: Product is not one of the above insulation types (compliant).","Unfaced fiberglass/mineral wool boards","Yes","Not a bio-based insulation material"]
[null,{"$f":"B536+1","v":3},"Cavity Rock Insulation","Rockwool",2000,null,"Yes: Product is mineral wool batt that is formaldehyde-free.","Unfaced fiberglass/mineral wool boards","Yes","Not a bio-based insulation material"]
[null,{"$f":"B537+1","v":4}]
[null,5]
[null,{"$f":"B539+1","v":6}]
[null,7]
[null,8]
[null,9]
[null,10]
[null,11]
[null,12]
[null,13]
[null,14]
[null,15]
[null,16]
[null,17]
[null,18]
[null,19]
[null,20]
[null,21]
[null,22]
[null,23]
[null,24]
[null,25]
[null,26]
[null,27]
[null,28]
[null,29]
[null,30]
[null,31]
[null,32]
[null,33]
[null,34]
[null,35]
[null,36]
[null,37]
[null,38]
[null,39]
[null,40]
[null,41]
[null,42]
[null,43]
[null,44]
[null,45]
[null,46]
[null,47]
[null,48]
[null,49]
[null,50]
[null,51]
[null,52]
[null,53]
[null,54]
[null,55]
[null,56]
[null,57]
[null,58]
[null,59]
[null,60]
[null,61]
[null,62]
[null,63]
[null,64]
[null,65]
[null,66]
[null,67]
[null,{"$f":"B601+1","v":68}]
[null,69]
[null,70]
[null,71]
[null,72]
[null,73]
[null,74]
[null,75]
[null,76]
[null,77]
[null,78]
[null,79]
[null,80]
[null,81]
[null,82]
[null,83]
[null,84]
[null,85]
[null,86]
[null,87]
[null,88]
[null,89]
[null,90]
[null,91]
[null,92]
[null,93]
[null,94]
[null,95]
[null,96]
[null,97]
[null,98]
[null,{"$f":"B632+1","v":99}]
[null,{"$f":"B633+1","v":100}]
[null,"Compliance Summary:",null,null,{"$f":"SUM(E535:E634)","v":14100},null,{"$f":"IF(COUNTIF(G535:G634,\"?*\")=0,\"\",IF(OR(K635=\"\",E635=\"\",E635=0),\"\",K635/E635))","v":1},{"$f":"IF(COUNTIF(H535:H634,\"?*\")=0,\"\",IF(OR(L635=\"\",E635=\"\",E635=0),\"\",L635/E635))","v":1},{"$f":"IF(COUNTIF(I535:I634,\"?*\")=0,\"\",IF(OR(M635=\"\",E635=\"\",E635=0),\"\",M635/E635))","v":1},{"$f":"IF(COUNTIF(J535:J634,\"?*\")=0,\"\",IF(OR(N635=\"\",E635=\"\",E635=0),\"\",N635/E635))","v":0},{"$f":" SUMPRODUCT(E535:E634*(G535:G634<>\"\")*(G535:G634<>\"No: Product is one of the above insulation types and does not comply with the minimum standard.\"))","v":14100},{"$f":" SUMPRODUCT(E535:E634*(H535:H634<>\"\")*(H535:H634<>\"Not an intermediate insulation material\"))","v":14100},{"$f":" SUMPRODUCT(E535:E634*(I535:I634<>\"\")*(I535:I634<>\"No\"))","v":14100},{"$f":" SUMPRODUCT(E535:E634*(J535:J634<>\"\")*(J535:J634<>\"Not a bio-based insulation material\"))","v":0}]
[null," Paints and other coatings, wet-applied interior",null,null,null,null,"Mandatory requirements met?",{"$f":"IF(AND(H740=\"\",I740=\"\",J740=\"\",K740=\"\",L740=\"\"),\"\",\nIF(OR(\nAND(H740=100%,ISNUMBER(I740),I740>=90%),\nAND(H740=100%,ISNUMBER(I740),I740>=90%,ISNUMBER(J740),J740>=90%),\nAND(ISNUMBER(K740),ISNUMBER(L740),K740>=50%,L740>=90%)\n),\"Yes\",\"No\"))","v":"Yes"},null,null,"Optional points total:",{"$f":"IF(L637=\"\",\"\",\nIF(COUNT(H635:K740)=0,0,\nIF(L637=1,\n    IF(AND(K740>=50%,J635>=90%),4,0),\n    IF(L637=2,\n        IF(AND(J740>=90%,I740>=90%,H740=100%),2,0),\n        IF(L637=3,0,0)\n    )\n)))","v":2}]
[null," Mandatory - Implement Option 1, 2 or 3. Additional points available for 1 or 2.\n *See Table 6.4b in 'References' tab for VOC Content thresholds.",null,null,null,null,"Option pursued:   \n(Choose one)   ",null,null,null,null,2]
[null,null,"Product\nName","Manufacturer \nName","Estimated Product Cost",null,"Option 3\nMandatory requirement, also required for Options 1 or 2",null,null,"Option 2\nMeet requirement + Option 3 for 2 points","Option 1\nMeet both requirements for 4 points"]
[null,null,null,null,null,null,"Estimated Product Volume \n(Liters)","VOC Content (g/L)\nAll products must meet thresholds* for product type (100% compliance)\nIf thresholds are not met, type 'NA' in cell.","Approved VOC Emissions Certification or Standard\n≥ 90% compliance by volume\nIf no certification/standard available, type 'NA' in cell.","Free of PFAS?\n(Yes / No)\n≥ 90% compliance","Mineral paint?\n(Yes / No)\n≥ 50% compliance","Product meets Option 3?\n(Yes / No)\n≥ 90% compliance"]
[null,1,"ProMar200 Primer","Sherwin Williams",15000,null,2000,0,"Greenguard Gold","Yes","No","Yes"]
[null,{"$f":"B640+1","v":2},"ProMar 200 Series - Eggshell","Sherwin Williams",13000,null,2000,0,"Greenguard Gold","Yes","No","Yes"]
[null,{"$f":"B641+1","v":3},"ProMar 200 Series - Flat","Sherwin Williams",10000,null,1500,0,"Greenguard Gold","Yes","No","Yes"]
[null,{"$f":"B642+1","v":4},"Pro Industrial Multi-Surface Acrylic Semi-Gloss","Sherwin Williams",15000,null,2250,17,"Greenguard Gold","Yes","No","Yes"]
[null,5,"Pro Industrial DTM Semi-Gloss","Sherwin Williams",2500,null,60,50,"Greenguard Gold","Yes","No","Yes"]
[null,{"$f":"B644+1","v":6},"Pro Industrial DTM Primer","Sherwin Williams",1000,null,30,50,"Greenguard Gold","Yes","No","Yes"]
[null,7]
[null,8]
[null,9]
[null,10]
[null,11]
[null,12]
[null,13]
[null,14]
[null,15]
[null,16]
[null,17]
[null,18]
[null,19]
[null,20]
[null,21]
[null,22]
[null,23]
[null,24]
[null,25]
[null,26]
[null,27]
[null,28]
[null,29]
[null,30]
[null,31]
[null,32]
[null,33]
[null,34]
[null,35]
[null,36]
[null,37]
[null,38]
[null,39]
[null,40]
[null,41]
[null,42]
[null,43]
[null,44]
[null,45]
[null,46]
[null,47]
[null,48]
[null,49]
[null,50]
[null,51]
[null,52]
[null,53]
[null,54]
[null,55]
[null,56]
[null,57]
[null,58]
[null,59]
[null,60]
[null,61]
[null,62]
[null,63]
[null,64]
[null,65]
[null,66]
[null,67]
[null,{"$f":"B706+1","v":68}]
[null,69]
[null,70]
[null,71]
[null,72]
[null,73]
[null,74]
[null,75]
[null,76]
[null,77]
[null,78]
[null,79]
[null,80]
[null,81]
[null,82]
[null,83]
[null,84]
[null,85]
[null,86]
[null,87]
[null,88]
[null,89]
[null,90]
[null,91]
[null,92]
[null,93]
[null,94]
[null,95]
[null,96]
[null,97]
[null,98]
[null,{"$f":"B737+1","v":99}]
[null,{"$f":"B738+1","v":100}]
[null,"Compliance Summary:",null,null,{"$f":"SUM(E640:E739)","v":56500},null,{"$f":"SUMPRODUCT(IFERROR(--G640:G739,0))","v":7840},{"$f":"IFERROR((COUNTA(H640:H739)-COUNTIF(H640:H739,\"NA\"))/COUNTA(H640:H739),\"\")","v":1},{"$f":"IFERROR(\nSUMPRODUCT(\n--(I640:I739<>\"\"),\n--(I640:I739<>\"NA\"),\nIFERROR(VALUE(G640:G739),0)\n)\n/SUMPRODUCT(IFERROR(VALUE(G640:G739),0)),\n\"\")","v":1},{"$f":"IFERROR(\nCOUNTIF(J640:J739,\"Yes\")/(COUNTIF(J640:J739,\"Yes\")+COUNTIF(J640:J739,\"No\")),\n\"\"\n)","v":1},{"$f":"IFERROR(\nCOUNTIF(K640:K739,\"Yes\")/(COUNTIF(K640:K739,\"Yes\")+COUNTIF(K640:K739,\"No\")),\n\"\"\n)","v":0},{"$f":"IFERROR(\nSUMPRODUCT(\n--(L640:L739<>\"\"),\n--(L640:L739<>\"NA\"),\n--(K640:K739<>\"Yes\"),\nIFERROR(VALUE(G640:G739),0)\n)\n/\nSUMPRODUCT(\n--(K640:K739<>\"Yes\"),\nIFERROR(VALUE(G640:G739),0)\n),\n\"\")","v":1}]
[null," Steel",null,null,null,null,null,null,null,null,"  Optional points total:",{"$f":"IF(L742=\"\",\"\",\nIF(L742=2,\n    IF(\n        AND(\n            COUNT(M741:O741)>0,\n            IFERROR(M741=\"\",TRUE) * IFERROR(M745=0,TRUE) + IFERROR(M741/M745>=0.75,FALSE),\n            IFERROR(N741=\"\",TRUE) * IFERROR(N745=0,TRUE) + IFERROR(N741/N745>=0.75,FALSE),\n            IFERROR(O741=\"\",TRUE) * IFERROR(O745=0,TRUE) + IFERROR(O741/O745>=0.75,FALSE)\n        ),\n    3,0),\nIF(L742=1,\n    IF(OR(J845=100%,K845=100%),4,0),\n0)))","v":4},{"$f":"IF(SUMIFS(E745:E844,G745:G844,\"Steel deck\",I745:I844,\"Yes\")=0,\"\",SUMIFS(E745:E844,G745:G844,\"Steel deck\",I745:I844,\"Yes\"))","v":23000},{"$f":"IF(SUMIFS(E745:E844,G745:G844,\"Cold-formed steel framing\",I745:I844,\"Yes\")=0,\"\",SUMIFS(E745:E844,G745:G844,\"Cold-formed steel framing\",I745:I844,\"Yes\"))","v":20000},{"$f":"IF(SUMIFS(E745:E844,G745:G844,\"Structural steel\",I745:I844,\"Yes\")=0,\"\",SUMIFS(E745:E844,G745:G844,\"Structural steel\",I745:I844,\"Yes\"))","v":20000}]
[null," Optional - Implement Option 1 or Option 2.\n *See CLF Baseline tables in 'References' tab ",null,null,null,null,"Option pursued:    \n(Choose one)    ",null,null,null,null,1]
[null,null,"Product\nName","Manufacturer \nName","Estimated Product Cost",null,"Option 2\n3 points",null,null,"Option 1\nMeet either requirement for 4 points"]
[null,null,null,null,null,null,"Steel Type\n(Choose type)","Global Warming Potential \n(kgCO2e/m2)","Is GWP at least 20% lower than CLF baseline*?\n≥ 75% compliance for each steel type","Steel produced by electric arc furnace?\n100% compliance","At least 90% recycled content?\n100% compliance"]
[null,1,"Structural Steel","Gerdau",20000,null,"Structural steel",817,"Yes","Yes",96,null,{"$f":"_xlfn.LET(_xlpm.x,SUMIFS(E745:E844,G745:G844,\"Steel deck\"),IF(_xlpm.x=0,\"\",_xlpm.x))","v":23000},{"$f":"_xlfn.LET(_xlpm.x,SUMIFS(E745:E844,G745:G844,\"Cold-formed steel framing\"),IF(_xlpm.x=0,\"\",_xlpm.x))","v":20000},{"$f":"_xlfn.LET(_xlpm.x,SUMIFS(E745:E844,G745:G844,\"Structural steel\"),IF(_xlpm.x=0,\"\",_xlpm.x))","v":20000}]
[null,{"$f":"B745+1","v":2},"Cold-Formed Steel Framing","SCAFCO",20000,null,"Cold-formed steel framing",1720,"Yes","Yes",37]
[null,{"$f":"B746+1","v":3},"Steel Deck","Nucor Vulcraft",23000,null,"Steel deck",1623,"Yes","Yes",60]
[null,4]
[null,5]
[null,{"$f":"B749+1","v":6}]
[null,{"$f":"B750+1","v":7}]
[null,8]
[null,9]
[null,{"$f":"B753+1","v":10}]
[null,{"$f":"B754+1","v":11}]
[null,12]
[null,13]
[null,{"$f":"B757+1","v":14}]
[null,{"$f":"B758+1","v":15}]
[null,16]
[null,17]
[null,{"$f":"B761+1","v":18}]
[null,{"$f":"B762+1","v":19}]
[null,20]
[null,21]
[null,{"$f":"B765+1","v":22}]
[null,{"$f":"B766+1","v":23}]
[null,24]
[null,25]
[null,{"$f":"B769+1","v":26}]
[null,{"$f":"B770+1","v":27}]
[null,28]
[null,29]
[null,{"$f":"B773+1","v":30}]
[null,{"$f":"B774+1","v":31}]
[null,32]
[null,33]
[null,{"$f":"B777+1","v":34}]
[null,{"$f":"B778+1","v":35}]
[null,36]
[null,37]
[null,{"$f":"B781+1","v":38}]
[null,{"$f":"B782+1","v":39}]
[null,40]
[null,41]
[null,{"$f":"B785+1","v":42}]
[null,{"$f":"B786+1","v":43}]
[null,44]
[null,45]
[null,{"$f":"B789+1","v":46}]
[null,{"$f":"B790+1","v":47}]
[null,48]
[null,49]
[null,{"$f":"B793+1","v":50}]
[null,{"$f":"B794+1","v":51}]
[null,52]
[null,53]
[null,{"$f":"B797+1","v":54}]
[null,{"$f":"B798+1","v":55}]
[null,56]
[null,57]
[null,{"$f":"B801+1","v":58}]
[null,{"$f":"B802+1","v":59}]
[null,60]
[null,61]
[null,{"$f":"B805+1","v":62}]
[null,{"$f":"B806+1","v":63}]
[null,64]
[null,65]
[null,66]
[null,67]
[null,68]
[null,{"$f":"B812+1","v":69}]
[null,{"$f":"B813+1","v":70}]
[null,71]
[null,72]
[null,{"$f":"B816+1","v":73}]
[null,{"$f":"B817+1","v":74}]
[null,75]
[null,76]
[null,{"$f":"B820+1","v":77}]
[null,{"$f":"B821+1","v":78}]
[null,79]
[null,80]
[null,{"$f":"B824+1","v":81}]
[null,{"$f":"B825+1","v":82}]
[null,83]
[null,84]
[null,85]
[null,86]
[null,{"$f":"B830+1","v":87}]
[null,{"$f":"B831+1","v":88}]
[null,89]
[null,90]
[null,{"$f":"B834+1","v":91}]
[null,{"$f":"B835+1","v":92}]
[null,93]
[null,94]
[null,{"$f":"B838+1","v":95}]
[null,{"$f":"B839+1","v":96}]
[null,97]
[null,98]
[null,99]
[null,100]
[null,"Compliance Summary:",null,null,{"$f":"SUM(E745:E844)","v":63000},null,null,null,{"$f":"IF(COUNTA(G745:G844)=0,\"\",\n\"Steel deck: \"&IFERROR(TEXT(M741/M745,\"0%\"),\"0%\")&CHAR(10)&\n\"Cold-formed steel framing: \"&IFERROR(TEXT(N741/N745,\"0%\"),\"0%\")&CHAR(10)&\n\"Structural steel: \"&IFERROR(TEXT(O741/O745,\"0%\"),\"0%\"))","v":"Steel deck: 100%\nCold-formed steel framing: 100%\nStructural steel: 100%"},{"$f":"IF(COUNTIF(J745:J844,\"?*\")=0,\"\",IF(OR(L845=\"\",E845=\"\",E845=0),\"\",L845/E845))","v":1},{"$f":"IF(COUNTA(K745:K844)=0,\"\",IF(OR(M845=\"\",E845=\"\",E845=0),\"\",M845/E845))","v":0.31746031746031744},{"$f":"SUMIFS(E745:E844,J745:J844,\"<>No\",J745:J844,\"<>\")","v":63000},{"$f":"SUMIFS(E745:E844,K745:K844,\">=90\")","v":20000}]
[null," Wall coverings",null,null,null,null,"Mandatory requirements met?",{"$f":"IF(G950=\"\",\"\",IF(G950=1,\"Yes\",\"No\"))","v":"Yes"},null,null,"Optional points total:","NA"]
[null," Mandatory",null,null,null,null,"Option pursued:",null,null,null,null,"NA"]
[null,null,"Product\nName","Manufacturer \nName","Estimated Product Cost",null,"Mandatory\nNo additional points"]
[null,null,null,null,null,null,"Contains vinyl?\n(Yes / No)\n100% compliance NO vinyl"]
[null,1,"Xorel - Seadrift","Carnegie",4000,null,"No"]
[null,{"$f":"B850+1","v":2},"Xorel - Seafoam","Carnegie",3000,null,"No"]
[null,{"$f":"B851+1","v":3}]
[null,{"$f":"B852+1","v":4}]
[null,5]
[null,{"$f":"B854+1","v":6}]
[null,7]
[null,8]
[null,9]
[null,10]
[null,11]
[null,12]
[null,13]
[null,14]
[null,15]
[null,16]
[null,17]
[null,18]
[null,19]
[null,20]
[null,21]
[null,22]
[null,23]
[null,24]
[null,25]
[null,26]
[null,27]
[null,28]
[null,29]
[null,30]
[null,31]
[null,32]
[null,33]
[null,34]
[null,35]
[null,36]
[null,37]
[null,38]
[null,39]
[null,40]
[null,41]
[null,42]
[null,43]
[null,44]
[null,45]
[null,46]
[null,47]
[null,48]
[null,49]
[null,50]
[null,51]
[null,52]
[null,53]
[null,54]
[null,55]
[null,56]
[null,57]
[null,58]
[null,59]
[null,60]
[null,61]
[null,62]
[null,63]
[null,64]
[null,65]
[null,66]
[null,67]
[null,{"$f":"B916+1","v":68}]
[null,69]
[null,70]
[null,71]
[null,72]
[null,73]
[null,74]
[null,75]
[null,76]
[null,77]
[null,78]
[null,79]
[null,80]
[null,81]
[null,82]
[null,83]
[null,84]
[null,85]
[null,86]
[null,87]
[null,88]
[null,89]
[null,90]
[null,91]
[null,92]
[null,93]
[null,94]
[null,95]
[null,96]
[null,97]
[null,98]
[null,{"$f":"B947+1","v":99}]
[null,{"$f":"B948+1","v":100}]
[null,"Compliance Summary:",null,null,{"$f":"SUM(E850:E949)","v":7000},null,{"$f":"IF(COUNTIF(G850:G949,\"?*\")=0,\"\",IF(OR(H950=\"\",E950=\"\",E950=0),\"\",H950/E950))","v":1},{"$f":"SUMIFS(E850:E949,G850:G949,\"<>Yes\",G850:G949,\"<>\")","v":7000}]
[null," Wood, composite",null,null,null,null,"Mandatory requirements met?",{"$f":"IF(H1055=\"\",\"\",IF(H1055=1,\"Yes\",\"No\"))","v":"Yes"},null,null,"Optional points total:    ",{"$f":"IF(COUNT(H1055:J1055)=0,\"\",\nIF(AND(\n    H1055=1,\n    OR(I1055=1,AND(ISNUMBER(J1055),J1055>=0.5))\n),\n2,\n0))","v":2}]
[null," Mandatory",null,null,null,null,"Option pursued:   ",null,null,null,null,"NA"]
[null,null,"Product\nName","Manufacturer \nName","Estimated Product Cost",null,"Mandatory\nNo additional points",null,"Optional\nMeet mandatory + either requirement for 2 points."]
[null,null,null,null,null,null,"Material Type","Less than/equal to formaldehyde emissions standard thresholds?\n100% compliance","Contains No Added Formaldehyde (NAF)?\n100% compliance","FSC Certified?\n≥ 50% compliance"]
[null,1,"D-Blaze","Viance",1200,null,"Hardwood plywood","Yes: CARB Phase II Composite Wood Products Airborne Toxic Control Measure","Yes","Yes"]
[null,{"$f":"B955+1","v":2},null,null,1000,null,"Particleboard","Yes: Toxic Substances Control Act (TSCA) Title IV","Yes","Yes"]
[null,{"$f":"B956+1","v":3},null,null,500,null,"Medium-density fiberboard (MDF)","Yes: CARB Phase II Composite Wood Products Airborne Toxic Control Measure","Yes","Yes"]
[null,{"$f":"B957+1","v":4}]
[null,5]
[null,{"$f":"B959+1","v":6}]
[null,7]
[null,8]
[null,9]
[null,10]
[null,11]
[null,12]
[null,13]
[null,14]
[null,15]
[null,16]
[null,17]
[null,18]
[null,19]
[null,20]
[null,21]
[null,22]
[null,23]
[null,24]
[null,25]
[null,26]
[null,27]
[null,28]
[null,29]
[null,30]
[null,31]
[null,32]
[null,33]
[null,34]
[null,35]
[null,36]
[null,37]
[null,38]
[null,39]
[null,40]
[null,41]
[null,42]
[null,43]
[null,44]
[null,45]
[null,46]
[null,47]
[null,48]
[null,49]
[null,50]
[null,51]
[null,52]
[null,53]
[null,54]
[null,55]
[null,56]
[null,57]
[null,58]
[null,59]
[null,60]
[null,61]
[null,62]
[null,63]
[null,64]
[null,65]
[null,66]
[null,67]
[null,{"$f":"B1021+1","v":68}]
[null,69]
[null,70]
[null,71]
[null,72]
[null,73]
[null,74]
[null,75]
[null,76]
[null,77]
[null,78]
[null,79]
[null,80]
[null,81]
[null,82]
[null,83]
[null,84]
[null,85]
[null,86]
[null,87]
[null,88]
[null,89]
[null,90]
[null,91]
[null,92]
[null,93]
[null,94]
[null,95]
[null,96]
[null,97]
[null,98]
[null,{"$f":"B1052+1","v":99}]
[null,{"$f":"B1053+1","v":100}]
[null,"Compliance Summary:",null,null,{"$f":"SUM(E955:E1054)","v":2700},null,null,{"$f":"IF(COUNTIF(H955:H1054,\"?*\")=0,\"\",IF(OR(K1055=\"\",E1055=\"\",E1055=0),\"\",K1055/E1055))","v":1},{"$f":"IF(COUNTIF(I955:I1054,\"?*\")=0,\"\",IF(OR(L1055=\"\",E1055=\"\",E1055=0),\"\",L1055/E1055))","v":1},{"$f":"IF(COUNTIF(J955:J1054,\"?*\")=0,\"\",IF(OR(M1055=\"\",E1055=\"\",E1055=0),\"\",M1055/E1055))","v":1},{"$f":"SUMIFS(E955:E1054,H955:H1054,\"<>No: Emissions for product exceed thresholds.\",H955:H1054,\"<>\")","v":2700},{"$f":"SUMIFS(E955:E1054,I955:I1054,\"<>No\",I955:I1054,\"<>\")","v":2700},{"$f":"SUMIFS(E955:E1054,J955:J1054,\"<>No\",J955:J1054,\"<>\")","v":2700}]
[null," Wood, noncomposite",null,null,null,null,null,null,null,null,"  Optional points total:   ",{"$f":"IF(G1160=\"\",\"\",\nIF(G1160>=50%,2,0))","v":2}]
[null," Optional",null,null,null,null,"Option pursued:    ",null,null,null,null,"NA"]
[null,null,"Product\nName","Manufacturer \nName","Estimated Product Cost",null,"Optional\n2 points"]
[null,null,null,null,null,null,"FSC Certified?\n≥ 50% compliance"]
[null,1,"Clear Decking","Kebony",9000,null,"Yes"]
[null,{"$f":"B1060+1","v":2}]
[null,{"$f":"B1061+1","v":3}]
[null,{"$f":"B1062+1","v":4}]
[null,5]
[null,{"$f":"B1064+1","v":6}]
[null,7]
[null,8]
[null,9]
[null,10]
[null,11]
[null,12]
[null,13]
[null,14]
[null,15]
[null,16]
[null,17]
[null,18]
[null,19]
[null,20]
[null,21]
[null,22]
[null,23]
[null,24]
[null,25]
[null,26]
[null,27]
[null,28]
[null,29]
[null,30]
[null,31]
[null,32]
[null,33]
[null,34]
[null,35]
[null,36]
[null,37]
[null,38]
[null,39]
[null,40]
[null,41]
[null,42]
[null,43]
[null,44]
[null,45]
[null,46]
[null,47]
[null,48]
[null,49]
[null,50]
[null,51]
[null,52]
[null,53]
[null,54]
[null,55]
[null,56]
[null,57]
[null,58]
[null,59]
[null,60]
[null,61]
[null,62]
[null,63]
[null,64]
[null,65]
[null,66]
[null,67]
[null,{"$f":"B1126+1","v":68}]
[null,69]
[null,70]
[null,71]
[null,72]
[null,73]
[null,74]
[null,75]
[null,76]
[null,77]
[null,78]
[null,79]
[null,80]
[null,81]
[null,82]
[null,83]
[null,84]
[null,85]
[null,86]
[null,87]
[null,88]
[null,89]
[null,90]
[null,91]
[null,92]
[null,93]
[null,94]
[null,95]
[null,96]
[null,97]
[null,98]
[null,{"$f":"B1157+1","v":99}]
[null,{"$f":"B1158+1","v":100}]
[null,"Compliance Summary:",null,null,{"$f":"SUM(E1060:E1159)","v":9000},null,{"$f":"IF(COUNTIF(G1060:G1159,\"?*\")=0,\"\",IF(OR(M1160=\"\",E1160=\"\",E1160=0),\"\",M1160/E1160))","v":1},null,null,null,null,null,{"$f":"SUMIFS(E1060:E1159,G1060:G1159,\"<>No\",G1060:G1159,\"<>\")","v":9000}]
[null,null,null,null,null,null,"Total Optional Points Achieved:   ",null,null,null,null,{"$f":"IF(COUNT(L216,L111,L321,L426,L531,L636,L741,L951,L1056)=0,\"\",SUM(L216,L111,L321,L426,L531,L636,L741,L951,L1056))","v":22}]

{"sheet":"6.1 - Standards","index":6,"n_rows":25,"n_cols":5,"rows_kept":25,"cut":false,"hidden":true,"merged":[]}
["Evaluation","Embodied Carbon","Material Health","Embodied Carbon Screening Resources","Material Health Screening Resources"]
["Embodied Carbon","Cladding, exterior wall","Adhesives and sealants, wet-applied interior","Embodied Carbon in Construction Calculator (EC3)","Common Materials Framework (CMF) human health impact area"]
["Material Health","Concrete","Cladding, exterior wall","BEAM Estimator","Habitable’s Informed product guidance and benchmarking tools"]
[null,"Flooring","Flooring","Kaleidoscope: Embodied Carbon Design Tool"]
[null,"Gypsum","Insulation","ZeroGuide"]
[null,"Insulation","Paint, interior","C.Scale"]
[null,"Steel","Wood, composite","Athena Impact"]
[null,"Wood, composite",null,"Tally"]
[null,"Wood, non-composite",null,"Carbon Designer 3D (CD3D) by One Click LCA"]
[null,null,null,"Common Materials Framework (CMF) climate health impact area"]
[]
[]
[]
[]
[]
[]
[]
[]
[]
[]
[]
[]
[]
[]
["COLUMN B","COLUMN C","COLUMN C","COLUMN D","COLUMN D"]

{"sheet":"6.4 - Standards","index":7,"n_rows":25,"n_cols":14,"rows_kept":25,"cut":false,"hidden":true,"merged":[]}
["Flooring Option 1","Flooring prohibited"]
["Repaired existing floor","Flexible PVC with phthalates (in vinyl flooring/carpet backings)",null,null,null,null,null,"Expanded cork board",null,null,null,null,null,"Yes: Product is mineral wool batt that is formaldehyde-free."]
["Linoleum","Rubber/rubber–cork flooring from tire-derived crumb rubber",null,null,null,null,null,"Natural wood (including heat treated)",null,null,null,null,null,"Yes: Product is two-part spray polyurethane foam only used to establish sealed air barrier."]
["FSC-certified solid wood flooring/salvaged wood","Carpet with intentionally added PFAS stain-repellant treatments",null,null,null,null,null,"Bamboo",null,null,null,null,null,"Yes: Product is foam insulation that has blowing agents with low GWP (GWP150)."]
["Pre-finished engineered wood/bamboo","Fluid-applied finish floors in regularly occupied area",null,null,null,null,null,"Engineered wood",null,null,null,null,null,"Yes: Product is not one of the above insulation types (compliant)."]
["Pre-finished cork (excluding rubber/cork composite)","Not a prohibited flooring type",null,null,null,null,null,"Thin brick",null,null,null,null,null,"No: Product is one of the above insulation types and does not comply with the minimum standard."]
["No floorcovering (concrete, unfinished CLT structural slab) ",null,null,null,null,null,null,"Natural stone"]
["Ceramic/porcelain tile (no added lead)",null,null,null,null,null,null,"Ceramic"]
["Not a best-in-class flooring type",null,null,null,null,null,null,"Terra-cotta"]
[null,null,null,null,"\n\n",null,null,"Lime plaster"]
[null,null,null,null,null,null,null,"Fiber cement"]
[null,null,null,null,null,null,null,"Preserved or repaired existing cladding, any material"]
[null,null,null,null,null,null,null,"Not a compliant cladding material",null,null,null,null,null,"Wood fiber"]
[null,null,null,null,null,null,null,null,null,null,null,null,null,"Hemp fiber"]
[null,null,null,null,null,null,null,null,null,null,null,null,null,"Cellulose or cotton"]
[null,null,null,null,null,null,null,"Bio-based",null,null,null,null,null,"Hempcrete"]
[null,null,null,null,null,null,null,"Fiberglass batts",null,null,null,null,null,"Straw"]
[null,null,null,null,null,null,null,"Formaldehyde-free mineral wool batts",null,null,null,null,null,"Other bio-based material"]
[null,null,null,null,null,null,null,"Unfaced fiberglass/mineral wool boards",null,null,null,null,null,"Not a bio-based insulation material"]
[null,null,null,null,null,null,null,"Not an intermediate insulation material"]
[]
[]
[null,null,null,null,null,null,null,null,null,null,null,null,null,"Yes: CARB Phase II Composite Wood Products Airborne Toxic Control Measure"]
[null,null,null,null,null,null,null,null,null,null,null,null,null,"Yes: Toxic Substances Control Act (TSCA) Title IV"]
[null,null,null,null,null,null,null,null,null,null,null,null,null,"No: Emissions for product exceed thresholds."]